Workbook

Sheet الواجهة

Sheet 2علوم تجريبية1
A1: ثانوية :الشهيد سعيداني أحمد | E1: الفصل الاول | I1: الــــــــمادة : اللغة العربية وآدابها | N1: 14:23:40
A2: القســــــــــــــــم: 2ع.تج1 | I2: الموسم الدراسى: 2019/2018
A3: الأستاذة : حـــــمان يمنى | I3: ولايــــــة : بشــــــار | N3: أنشطـــــــة التقويــــــــم
A4: القـــــــــــــــــــــــــائمة الاسمية للتلاميـــــــــــــــــــــــــــــــــــذ
A6: الرقم | B6: الاسم و اللقب | D6: م.المستمرة | E6: تط/شفهي | F6: معدل الفروض | G6: الاختبار | H6: الاختبار*2 | I6: المعدل | J6: م.المعامل | K6: الملاحظة | N6: تعبير كتابي | O6: واجب منزلي | P6: مشروع
A7: 1 | B7: المير عبد الودود | D7: 12.00 | E7: 12.00 | F7: 07.25 | G7: 05.00 | H7: =G7*2 -> 10 | I7: =(H7+F7+E7+D7)/5 -> 8.25 | J7: =I7*2 -> 16.5 | K7: =IF(I7>=18,"نتائج ممتازة",IF(I7>=14,"نتائج جيدة جدا",IF(I7>=12," نتائج جد حسنة",IF(I7>=10,"نتائج متوسطة",IF(I7>=7,"نتائج ضعيفة","نتائج ضعيفة جدا"))))) -> نتائج ضعيفة
A8: =A7+1 -> 2 | B8: بلجنة صفاء | D8: 14.00 | E8: 14.00 | F8: 08.50 | G8: 13.50 | H8: =G8*2 -> 27 | I8: =(H8+F8+E8+D8)/5 -> 12.7 | J8: =I8*2 -> 25.4 | K8: نتائج جد حسنة
A9: =A8+1 -> 3 | B9: بلغول محمد ياسر | D9: 12.00 | E9: 12.00 | F9: 07.00 | G9: 06.50 | H9: 13 | I9: 8.8 | J9: 17.6 | K9: نتائج ضعيفة
A10: =A9+1 -> 4 | B10: بن تونسي شيماء | D10: 16.50 | E10: 13.00 | F10: 12.00 | G10: 14.00 | H10: 28 | I10: 13.9 | J10: 27.8 | K10: نتائج جد حسنة
A11: 5 | B11: بن جيمة محمد | D11: 12.00 | E11: 12.00 | F11: 09.75 | G11: 09.00 | H11: 18 | I11: 10.35 | J11: 20.7 | K11: نتائج متوسطة
A12: 6 | B12: بن شكشك أسماء | D12: 17.00 | E12: 14.00 | F12: 14.50 | G12: 12.50 | H12: 25 | I12: 14.1 | J12: 28.2 | K12: نتائج جيدة جدا
A13: 7 | B13: بن عيسى إكرام | D13: 16.00 | E13: 14.00 | F13: 15.00 | G13: 13.50 | H13: 27 | I13: 14.4 | J13: 28.8 | K13: نتائج جيدة جدا
A14: =A13+1 -> 8 | B14: بن عيسى صلاح الدين | D14: 11.50 | E14: 11.00 | F14: 06.25 | G14: 08.50 | H14: 17 | I14: 9.15 | J14: 18.3 | K14: نتائج ضعيفة
A15: 9 | B15: بن كادي عبد الله | D15: 13.00 | E15: 12.00 | F15: 14.50 | G15: 07.25 | H15: 14.5 | I15: 10.8 | J15: 21.6 | K15: نتائج متوسطة
A16: 10 | B16: بوسيف رشا | D16: 15.50 | E16: 13.00 | F16: 12.25 | G16: 11.50 | H16: 23 | I16: 12.75 | J16: 25.5 | K16: نتائج جد حسنة
A17: 11 | B17: بوشة أسامة علاء الدين | D17: 11.00 | E17: 12.00 | F17: 05.00 | G17: 06.50 | H17: 13 | I17: 8.2 | J17: 16.4 | K17: نتائج ضعيفة
A18: 12 | B18: بوقنينة مباركة | D18: 17.50 | E18: 14.00 | F18: 12.00 | G18: 18.00 | H18: 36 | I18: 15.9 | J18: 31.8 | K18: نتائج جيدة جدا
A19: 13 | B19: تاج الدين صفاء فاطمة الزهراء | D19: 15.00 | E19: 12.50 | F19: 08.00 | G19: 07.00 | H19: 14 | I19: 9.9 | J19: 19.8 | K19: نتائج ضعيفة
A20: 14 | B20: تومي مريم | D20: 15.00 | E20: 12.00 | F20: 09.00 | G20: 07.50 | H20: 15 | I20: 10.2 | J20: 20.4 | K20: نتائج متوسطة
A21: 15 | B21: حنافي رباب | D21: 17.00 | E21: 14.00 | F21: 14.25 | G21: 12.50 | H21: 25 | I21: 14.05 | J21: 28.1 | K21: نتائج جيدة جدا
A22: 16 | B22: ديبة الزانة | D22: 16.00 | E22: 12.50 | F22: 11.25 | G22: 08.00 | H22: 16 | I22: 11.15 | J22: 22.3 | K22: نتائج متوسطة
A23: 17 | B23: سليمي بشرى هبة الله | D23: 14.00 | E23: 12.00 | F23: 09.75 | G23: 11.75 | H23: 23.5 | I23: 11.85 | J23: 23.7 | K23: نتائج متوسطة
A24: 18 | B24: شقرون حميدة فريال | D24: 15.00 | E24: 11.50 | F24: 14.25 | G24: 08.00 | H24: 16 | I24: 11.35 | J24: 22.7 | K24: نتائج متوسطة
A25: 19 | B25: صديقي أسماء | D25: 15.00 | E25: 14.00 | F25: 12.00 | G25: 13.00 | H25: 26 | I25: 13.4 | J25: 26.8 | K25: نتائج جد حسنة
A26: 20 | B26: عباش بشرى | D26: 13.50 | E26: 12.00 | F26: 14.75 | G26: 11.00 | H26: 22 | I26: 12.45 | J26: 24.9 | K26: نتائج جد حسنة
A27: 21 | B27: عروسي فاطنة شيماء | D27: 17.50 | E27: 14.00 | F27: 17.50 | G27: 16.50 | H27: 33 | I27: 16.4 | J27: 32.8 | K27: نتائج جيدة جدا
A28: 22 | B28: عفوس سندس | D28: 17.50 | E28: 14.00 | F28: 17.00 | G28: 16.00 | H28: 32 | I28: 16.1 | J28: 32.2 | K28: نتائج جيدة جدا
A29: 23 | B29: قايل خولة | D29: 16.00 | E29: 12.00 | F29: 10.75 | G29: 13.00 | H29: 26 | I29: 12.95 | J29: 25.9 | K29: نتائج جد حسنة
A30: 24 | B30: قلاوي إلياس | D30: 12.50 | E30: 10.00 | F30: 08.75 | G30: 05.75 | H30: 11.5 | I30: 8.55 | J30: 17.1 | K30: نتائج ضعيفة
A31: 25 | B31: مجري صبرينة رشا | D31: 15.50 | E31: 13.00 | F31: 10.50 | G31: 10.00 | H31: 20 | I31: 11.8 | J31: 23.6 | K31: نتائج متوسطة
A32: 26 | B32: محجوب أسماء | D32: 13.00 | E32: 11.50 | F32: 10.25 | G32: 09.50 | H32: 19 | I32: 10.75 | J32: 21.5 | K32: نتائج متوسطة
A33: 27 | B33: مشري عبد الرحمان | D33: 12.00 | E33: 11.50 | F33: 06.50 | G33: 04.00 | H33: 8 | I33: 7.6 | J33: 15.2 | K33: نتائج ضعيفة
A34: 28 | B34: منصور حياة | D34: 12.50 | E34: 10.50 | F34: 06.50 | G34: 08.00 | H34: 16 | I34: 9.1 | J34: 18.2 | K34: نتائج ضعيفة
A35: 29 | B35: منصوري بوتخيل | D35: 12.50 | E35: 12.00 | F35: 08.50 | G35: 06.50 | H35: 13 | I35: 9.2 | J35: 18.4 | K35: نتائج ضعيفة
A36: 30 | B36: يوسفي هاجر | D36: 13 | E36: 11 | F36: 7.25 | G36: 06.25 | H36: 12.5 | I36: 8.75 | J36: 17.5 | K36: نتائج ضعيفة
B39: فوق المعدل | D39: =COUNTIF(I7:I36,">=10") -> 20 | F39: تحت المعدل | H39: =COUNTIF(I7:I36,"<10") -> 10 | J39: معدل القسم | K39: =AVERAGE(I7:I36) -> 11.495
A45: ثانوية :الشهيد سعيداني أحمد | E45: الفصل الثاني | I45: الــــــــمادة : اللغة العربية وآدابها
A46: القســــــــــــــــم: 2ع.تج1 | I46: الموسم الدراسى: 2019/2018
A47: الأستاذة : حـــــمان يمنى | I47: ولايــــــة : بشــــــار | N47: أنشطـــــــة التقويــــــــم
A48: القـــــــــــــــــــــــــائمة الاسمية للتلاميـــــــــــــــــــــــــــــــــــذ
A50: الرقم | B50: الاسم و اللقب | D50: م.المستمرة | E50: تط/شفهي | F50: معدل الفروض | G50: الاختبار | H50: الاختبار*2 | I50: المعدل | J50: م.المعامل | K50: الملاحظة | N50: تعبير كتابي | O50: واجب منزلي | P50: مشروع
A51: 1 | B51: المير عبد الودود | H51: =G51*2 -> 0 | I51: =(H51+F51+E51+D51)/5 -> 0 | J51: =I51*2 -> 0 | K51: =IF(I51>=18,"نتائج ممتازة",IF(I51>=14,"نتائج جيدة جدا",IF(I51>=12," نتائج جد حسنة",IF(I51>=10,"نتائج متوسطة",IF(I51>=7,"نتائج ضعيفة","نتائج ضعيفة جدا"))))) -> نتائج ضعيفة جدا
A52: =A51+1 -> 2 | B52: بلجنة صفاء | H52: =G52*2 -> 0 | I52: =(H52+F52+E52+D52)/5 -> 0 | J52: =I52*2 -> 0 | K52: نتائج ضعيفة جدا
A53: =A52+1 -> 3 | B53: بلغول محمد ياسر | H53: 0 | I53: 0 | J53: 0 | K53: نتائج ضعيفة جدا
A54: =A53+1 -> 4 | B54: بن تونسي شيماء | H54: 0 | I54: 0 | J54: 0 | K54: نتائج ضعيفة جدا
A55: 5 | B55: بن جيمة محمد | H55: 0 | I55: 0 | J55: 0 | K55: نتائج ضعيفة جدا
A56: 6 | B56: بن شكشك أسماء | H56: 0 | I56: 0 | J56: 0 | K56: نتائج ضعيفة جدا
A57: 7 | B57: بن عيسى إكرام | H57: 0 | I57: 0 | J57: 0 | K57: نتائج ضعيفة جدا
A58: =A57+1 -> 8 | B58: بن عيسى صلاح الدين | H58: 0 | I58: 0 | J58: 0 | K58: نتائج ضعيفة جدا
A59: 9 | B59: بن كادي عبد الله | H59: 0 | I59: 0 | J59: 0 | K59: نتائج ضعيفة جدا
A60: 10 | B60: بوسيف رشا | H60: 0 | I60: 0 | J60: 0 | K60: نتائج ضعيفة جدا
A61: 11 | B61: بوشة أسامة علاء الدين | H61: 0 | I61: 0 | J61: 0 | K61: نتائج ضعيفة جدا
A62: 12 | B62: بوقنينة مباركة | H62: 0 | I62: 0 | J62: 0 | K62: نتائج ضعيفة جدا
A63: 13 | B63: تاج الدين صفاء فاطمة الزهراء | H63: 0 | I63: 0 | J63: 0 | K63: نتائج ضعيفة جدا
A64: 14 | B64: تومي مريم | H64: 0 | I64: 0 | J64: 0 | K64: نتائج ضعيفة جدا
A65: 15 | B65: حنافي رباب | H65: 0 | I65: 0 | J65: 0 | K65: نتائج ضعيفة جدا
A66: 16 | B66: ديبة الزانة | H66: 0 | I66: 0 | J66: 0 | K66: نتائج ضعيفة جدا
A67: 17 | B67: سليمي بشرى هبة الله | H67: 0 | I67: 0 | J67: 0 | K67: نتائج ضعيفة جدا
A68: 18 | B68: شقرون حميدة فريال | H68: 0 | I68: 0 | J68: 0 | K68: نتائج ضعيفة جدا
A69: 19 | B69: صديقي أسماء | H69: 0 | I69: 0 | J69: 0 | K69: نتائج ضعيفة جدا
A70: 20 | B70: عباش بشرى | H70: 0 | I70: 0 | J70: 0 | K70: نتائج ضعيفة جدا
A71: 21 | B71: عروسي فاطنة شيماء | H71: 0 | I71: 0 | J71: 0 | K71: نتائج ضعيفة جدا
A72: 22 | B72: عفوس سندس | H72: 0 | I72: 0 | J72: 0 | K72: نتائج ضعيفة جدا
A73: 23 | B73: قايل خولة | H73: 0 | I73: 0 | J73: 0 | K73: نتائج ضعيفة جدا
A74: 24 | B74: قلاوي إلياس | H74: 0 | I74: 0 | J74: 0 | K74: نتائج ضعيفة جدا
A75: 25 | B75: مجري صبرينة رشا | H75: 0 | I75: 0 | J75: 0 | K75: نتائج ضعيفة جدا
A76: 26 | B76: محجوب أسماء | H76: 0 | I76: 0 | J76: 0 | K76: نتائج ضعيفة جدا
A77: 27 | B77: مشري عبد الرحمان | H77: 0 | I77: 0 | J77: 0 | K77: نتائج ضعيفة جدا
A78: 28 | B78: منصور حياة | H78: 0 | I78: 0 | J78: 0 | K78: نتائج ضعيفة جدا
A79: 29 | B79: منصوري بوتخيل | H79: 0 | I79: 0 | J79: 0 | K79: نتائج ضعيفة جدا
A80: 30 | B80: يوسفي هاجر | H80: 0 | I80: 0 | J80: 0 | K80: نتائج ضعيفة جدا
B83: فوق المعدل | D83: =COUNTIF(I51:I80,">=10") -> 0 | F83: تحت المعدل | H83: =COUNTIF(I51:I80,"<10") -> 30 | J83: معدل القسم | K83: =AVERAGE(I51:I80) -> 0
A89: ثانوية :الشهيد سعيداني أحمد | E89: الفصل الثالث | I89: الــــــــمادة : اللغة العربية وآدابها
A90: القســــــــــــــــم: 2ع.تج1 | I90: الموسم الدراسى: 2019/2018
A91: الأستاذة : حـــــمان يمنى | I91: ولايــــــة : بشــــــار | N91: أنشطـــــــة التقويــــــــم
A92: القـــــــــــــــــــــــــائمة الاسمية للتلاميـــــــــــــــــــــــــــــــــــذ
A94: الرقم | B94: الاسم و اللقب | D94: م.المستمرة | E94: تط/شفهي | F94: معدل الفروض | G94: الاختبار | H94: الاختبار*2 | I94: المعدل | J94: م.المعامل | K94: الملاحظة | N94: تعبير كتابي | O94: واجب منزلي | P94: مشروع
A95: 1 | B95: المير عبد الودود | H95: =G95*2 -> 0 | I95: =(H95+F95+E95+D95)/5 -> 0 | J95: =I95*2 -> 0 | K95: =IF(I95>=18,"نتائج ممتازة",IF(I95>=14,"نتائج جيدة جدا",IF(I95>=12," نتائج جد حسنة",IF(I95>=10,"نتائج متوسطة",IF(I95>=7,"نتائج ضعيفة","نتائج ضعيفة جدا"))))) -> نتائج ضعيفة جدا
A96: =A95+1 -> 2 | B96: بلجنة صفاء | H96: =G96*2 -> 0 | I96: =(H96+F96+E96+D96)/5 -> 0 | J96: =I96*2 -> 0 | K96: نتائج ضعيفة جدا
A97: =A96+1 -> 3 | B97: بلغول محمد ياسر | H97: 0 | I97: 0 | J97: 0 | K97: نتائج ضعيفة جدا
A98: =A97+1 -> 4 | B98: بن تونسي شيماء | H98: 0 | I98: 0 | J98: 0 | K98: نتائج ضعيفة جدا
A99: 5 | B99: بن جيمة محمد | H99: 0 | I99: 0 | J99: 0 | K99: نتائج ضعيفة جدا
A100: 6 | B100: بن شكشك أسماء | H100: 0 | I100: 0 | J100: 0 | K100: نتائج ضعيفة جدا
A101: 7 | B101: بن عيسى إكرام | H101: 0 | I101: 0 | J101: 0 | K101: نتائج ضعيفة جدا
A102: =A101+1 -> 8 | B102: بن عيسى صلاح الدين | H102: 0 | I102: 0 | J102: 0 | K102: نتائج ضعيفة جدا
A103: 9 | B103: بن كادي عبد الله | H103: 0 | I103: 0 | J103: 0 | K103: نتائج ضعيفة جدا
A104: 10 | B104: بوسيف رشا | H104: 0 | I104: 0 | J104: 0 | K104: نتائج ضعيفة جدا
A105: 11 | B105: بوشة أسامة علاء الدين | H105: 0 | I105: 0 | J105: 0 | K105: نتائج ضعيفة جدا
A106: 12 | B106: بوقنينة مباركة | H106: 0 | I106: 0 | J106: 0 | K106: نتائج ضعيفة جدا
A107: 13 | B107: تاج الدين صفاء فاطمة الزهراء | H107: 0 | I107: 0 | J107: 0 | K107: نتائج ضعيفة جدا
A108: 14 | B108: تومي مريم | H108: 0 | I108: 0 | J108: 0 | K108: نتائج ضعيفة جدا
A109: 15 | B109: حنافي رباب | H109: 0 | I109: 0 | J109: 0 | K109: نتائج ضعيفة جدا
A110: 16 | B110: ديبة الزانة | H110: 0 | I110: 0 | J110: 0 | K110: نتائج ضعيفة جدا
A111: 17 | B111: سليمي بشرى هبة الله | H111: 0 | I111: 0 | J111: 0 | K111: نتائج ضعيفة جدا
A112: 18 | B112: شقرون حميدة فريال | H112: 0 | I112: 0 | J112: 0 | K112: نتائج ضعيفة جدا
A113: 19 | B113: صديقي أسماء | H113: 0 | I113: 0 | J113: 0 | K113: نتائج ضعيفة جدا
A114: 20 | B114: عباش بشرى | H114: 0 | I114: 0 | J114: 0 | K114: نتائج ضعيفة جدا
A115: 21 | B115: عروسي فاطنة شيماء | H115: 0 | I115: 0 | J115: 0 | K115: نتائج ضعيفة جدا
A116: 22 | B116: عفوس سندس | H116: 0 | I116: 0 | J116: 0 | K116: نتائج ضعيفة جدا
A117: 23 | B117: قايل خولة | H117: 0 | I117: 0 | J117: 0 | K117: نتائج ضعيفة جدا
A118: 24 | B118: قلاوي إلياس | H118: 0 | I118: 0 | J118: 0 | K118: نتائج ضعيفة جدا
A119: 25 | B119: مجري صبرينة رشا | H119: 0 | I119: 0 | J119: 0 | K119: نتائج ضعيفة جدا
A120: 26 | B120: محجوب أسماء | H120: 0 | I120: 0 | J120: 0 | K120: نتائج ضعيفة جدا
A121: 27 | B121: مشري عبد الرحمان | H121: 0 | I121: 0 | J121: 0 | K121: نتائج ضعيفة جدا
A122: 28 | B122: منصور حياة | H122: 0 | I122: 0 | J122: 0 | K122: نتائج ضعيفة جدا
A123: 29 | B123: منصوري بوتخيل | H123: 0 | I123: 0 | J123: 0 | K123: نتائج ضعيفة جدا
A124: 30 | B124: يوسفي هاجر | H124: 0 | I124: 0 | J124: 0 | K124: نتائج ضعيفة جدا
B127: فوق المعدل | D127: =COUNTIF(I95:I124,">=10") -> 0 | F127: تحت المعدل | H127: =COUNTIF(I95:I124,"<10") -> 30 | J127: معدل القسم | K127: =AVERAGE(I95:I124) -> 0

Sheet 2علوم تجريبية2
A1: ثانوية :الشهيد سعيداني أحمد | E1: الفصل الاول | I1: الــــــــمادة : آداب وفلســــــفة | R1: ثانوية :الشهيد سعيداني أحمد | V1: الفصل الثاني | Z1: الــــــــمادة : آداب وفلســــــفة | AJ1: ثانوية :الشهيد سعيداني أحمد | AN1: الفصل الثالث | AR1: الــــــــمادة : آداب وفلســــــفة
A2: القســــــــــــــــم: 2ع.تج2 | I2: الموسم الدراسى: 2019/2018 | R2: القســــــــــــــــم: 2ع.تج2 | Z2: الموسم الدراسى: 2019/2018 | AJ2: القســــــــــــــــم: 2ع.تج2 | AR2: الموسم الدراسى: 2019/2018
A3: الأستاذة : حـــــمان يمنى | I3: ولايــــــة : بشــــــار | N3: أنشطـــــــة التقويــــــــم | R3: الأستاذة : حـــــمان يمنى | Z3: ولايــــــة : بشــــــار | AJ3: الأستاذة : حـــــمان يمنى | AR3: ولايــــــة : بشــــــار
A4: القـــــــــــــــــــــــــائمة الاسمية للتلاميـــــــــــــــــــــــــــــــــــذ | R4: القـــــــــــــــــــــــــائمة الاسمية للتلاميـــــــــــــــــــــــــــــــــــذ | AJ4: القـــــــــــــــــــــــــائمة الاسمية للتلاميـــــــــــــــــــــــــــــــــــذ
A6: الرقم | B6: الاسم و اللقب | D6: م.المستمرة | E6: تط/شفهي | F6: معدل الفروض | G6: الاختبار | H6: الاختبار*2 | I6: المعدل | J6: م.المعامل | K6: الملاحظة | N6: تعبير كتابي | O6: واجب منزلي | P6: مشروع | R6: الرقم | S6: الاسم و اللقب | U6: م.المستمرة | V6: تط/شفهي | W6: معدل الفروض | X6: الاختبار | Y6: الاختبار*2 | Z6: المعدل | AA6: المعامل | AB6: المجموع | AC6: الملاحظة | AJ6: الرقم | AK6: الاسم و اللقب | AM6: م.المستمرة | AN6: تط/شفهي | AO6: معدل الفروض | AP6: الاختبار | AQ6: الاختبار*2 | AR6: المعدل | AS6: المعامل | AT6: المجموع | AU6: الملاحظة
A7: 1 | B7: أولا نصير رياض | C7: أولا نصير رياض | D7: 13.00 | E7: 12.00 | F7: 06.00 | G7: 10.00 | H7: =G7*2 -> 20 | I7: =(H7+F7+E7+D7)/5 -> 10.2 | J7: =I7*2 -> 20.4 | K7: =IF(I7>=18,"نتائج ممتازة",IF(I7>=14,"نتائج جيدة جدا",IF(I7>=12," نتائج جد حسنة",IF(I7>=10,"نتائج متوسطة",IF(I7>=7,"نتائج ضعيفة","نتائج ضعيفة جدا"))))) -> نتائج متوسطة | R7: 1 | S7: أولا نصير رياض | T7: أولا نصير رياض | Y7: =X7*2 -> 0 | Z7: =(Y7+W7)/3 -> 0 | AA7: 3 | AB7: =Z7*AA7 -> 0 | AC7: =IF(Z7>=18,"نتائج ممتازة",IF(Z7>=14,"نتائج جيدة جدا",IF(Z7>=12," نتائج جد حسنة",IF(Z7>=10,"نتائج متوسطة",IF(Z7>=7,"نتائج ضعيفة","نتائج ضعيفة جدا"))))) -> نتائج ضعيفة جدا | AJ7: 1 | AK7: أولا نصير رياض | AL7: أولا نصير رياض | AQ7: =AP7*2 -> 0 | AR7: =(AQ7+AO7)/3 -> 0 | AS7: 3 | AT7: =AR7*AS7 -> 0 | AU7: =IF(AR7>=18,"نتائج ممتازة",IF(AR7>=14,"نتائج جيدة جدا",IF(AR7>=12," نتائج جد حسنة",IF(AR7>=10,"نتائج متوسطة",IF(AR7>=7,"نتائج ضعيفة","نتائج ضعيفة جدا"))))) -> نتائج ضعيفة جدا
A8: =A7+1 -> 2 | B8: بركات بشرى | C8: بركات بشرى | D8: 15.00 | E8: 14.00 | F8: 12.00 | G8: 15.75 | H8: =G8*2 -> 31.5 | I8: =(H8+F8+E8+D8)/5 -> 14.5 | J8: =I8*2 -> 29 | K8: نتائج جيدة جدا | R8: =R7+1 -> 2 | S8: بركات بشرى | T8: بركات بشرى | Y8: =X8*2 -> 0 | Z8: =(Y8+W8)/3 -> 0 | AA8: 3 | AB8: =Z8*AA8 -> 0 | AC8: نتائج ضعيفة جدا | AJ8: =AJ7+1 -> 2 | AK8: بركات بشرى | AL8: بركات بشرى | AQ8: =AP8*2 -> 0 | AR8: =(AQ8+AO8)/3 -> 0 | AS8: 3 | AT8: =AR8*AS8 -> 0 | AU8: نتائج ضعيفة جدا
A9: =A8+1 -> 3 | B9: بقوق نجيب | C9: بقوق نجيب | D9: 12.00 | E9: 13.00 | F9: 03.25 | G9: 07.75 | H9: 15.5 | I9: 8.75 | J9: 17.5 | K9: نتائج ضعيفة | R9: =R8+1 -> 3 | S9: بقوق نجيب | T9: بقوق نجيب | Y9: 0 | Z9: 0 | AA9: 3 | AB9: 0 | AC9: نتائج ضعيفة جدا | AJ9: =AJ8+1 -> 3 | AK9: بقوق نجيب | AL9: بقوق نجيب | AQ9: 0 | AR9: 0 | AS9: 3 | AT9: 0 | AU9: نتائج ضعيفة جدا
A10: =A9+1 -> 4 | B10: بلعيد ايمان | C10: بلعيد ايمان | D10: 14.00 | E10: 13.00 | F10: 09.75 | G10: 11.50 | H10: 23 | I10: 11.95 | J10: 23.9 | K10: نتائج متوسطة | R10: =R9+1 -> 4 | S10: بلعيد ايمان | T10: بلعيد ايمان | Y10: 0 | Z10: 0 | AA10: 3 | AB10: 0 | AC10: نتائج ضعيفة جدا | AJ10: =AJ9+1 -> 4 | AK10: بلعيد ايمان | AL10: بلعيد ايمان | AQ10: 0 | AR10: 0 | AS10: 3 | AT10: 0 | AU10: نتائج ضعيفة جدا
A11: 5 | B11: بن خادر خالد | C11: بن خادر خالد | D11: 12.00 | E11: 12.50 | F11: 11.75 | G11: 07.25 | H11: 14.5 | I11: 10.15 | J11: 20.3 | K11: نتائج متوسطة | R11: 5 | S11: بن خادر خالد | T11: بن خادر خالد | Y11: 0 | Z11: 0 | AA11: 3 | AB11: 0 | AC11: نتائج ضعيفة جدا | AJ11: 5 | AK11: بن خادر خالد | AL11: بن خادر خالد | AQ11: 0 | AR11: 0 | AS11: 3 | AT11: 0 | AU11: نتائج ضعيفة جدا
A12: 6 | B12: بن دادة محمد اكرم | C12: بن دادة محمد اكرم | D12: 15.00 | E12: 13.00 | F12: 15.50 | G12: 11.25 | H12: 22.5 | I12: 13.2 | J12: 26.4 | K12: نتائج جد حسنة | R12: 6 | S12: بن دادة محمد اكرم | T12: بن دادة محمد اكرم | Y12: 0 | Z12: 0 | AA12: 3 | AB12: 0 | AC12: نتائج ضعيفة جدا | AJ12: 6 | AK12: بن دادة محمد اكرم | AL12: بن دادة محمد اكرم | AQ12: 0 | AR12: 0 | AS12: 3 | AT12: 0 | AU12: نتائج ضعيفة جدا
A13: 7 | B13: بن صابرو محمد | C13: بن صابرو محمد | D13: 14.50 | E13: 12.50 | F13: 14.25 | G13: 09.50 | H13: 19 | I13: 12.05 | J13: 24.1 | K13: نتائج جد حسنة | R13: 7 | S13: بن صابرو محمد | T13: بن صابرو محمد | Y13: 0 | Z13: 0 | AA13: 3 | AB13: 0 | AC13: نتائج ضعيفة جدا | AJ13: 7 | AK13: بن صابرو محمد | AL13: بن صابرو محمد | AQ13: 0 | AR13: 0 | AS13: 3 | AT13: 0 | AU13: نتائج ضعيفة جدا
A14: =A13+1 -> 8 | B14: بن عامر أسامة | C14: بن عامر أسامة | D14: 11.00 | E14: 11.50 | F14: 06.25 | G14: 10.00 | H14: 20 | I14: 9.75 | J14: 19.5 | K14: نتائج ضعيفة | R14: =R13+1 -> 8 | S14: بن عامر أسامة | T14: بن عامر أسامة | Y14: 0 | Z14: 0 | AA14: 3 | AB14: 0 | AC14: نتائج ضعيفة جدا | AJ14: =AJ13+1 -> 8 | AK14: بن عامر أسامة | AL14: بن عامر أسامة | AQ14: 0 | AR14: 0 | AS14: 3 | AT14: 0 | AU14: نتائج ضعيفة جدا
A15: 9 | B15: بن مجاهد هند | C15: بن مجاهد هند | D15: 15.50 | E15: 13.00 | F15: 15.00 | G15: 12.50 | H15: 25 | I15: 13.7 | J15: 27.4 | K15: نتائج جد حسنة | R15: 9 | S15: بن مجاهد هند | T15: بن مجاهد هند | Y15: 0 | Z15: 0 | AA15: 3 | AB15: 0 | AC15: نتائج ضعيفة جدا | AJ15: 9 | AK15: بن مجاهد هند | AL15: بن مجاهد هند | AQ15: 0 | AR15: 0 | AS15: 3 | AT15: 0 | AU15: نتائج ضعيفة جدا
A16: 10 | B16: بن معطي الحاج محمد | C16: بن معطي الحاج محمد | D16: 13.00 | E16: 12.00 | F16: 08.25 | G16: 10.00 | H16: 20 | I16: 10.65 | J16: 21.3 | K16: نتائج متوسطة | R16: 10 | S16: بن معطي الحاج محمد | T16: بن معطي الحاج محمد | Y16: 0 | Z16: 0 | AA16: 3 | AB16: 0 | AC16: نتائج ضعيفة جدا | AJ16: 10 | AK16: بن معطي الحاج محمد | AL16: بن معطي الحاج محمد | AQ16: 0 | AR16: 0 | AS16: 3 | AT16: 0 | AU16: نتائج ضعيفة جدا
A17: 11 | B17: بوشيخي أحمد | C17: بوشيخي أحمد | D17: 06.00 | E17: 06.00 | F17: 03.00 | G17: 03.00 | H17: 6 | I17: 4.2 | J17: 8.4 | K17: نتائج ضعيفة جدا | R17: 11 | S17: بوشيخي أحمد | T17: بوشيخي أحمد | Y17: 0 | Z17: 0 | AA17: 3 | AB17: 0 | AC17: نتائج ضعيفة جدا | AJ17: 11 | AK17: بوشيخي أحمد | AL17: بوشيخي أحمد | AQ17: 0 | AR17: 0 | AS17: 3 | AT17: 0 | AU17: نتائج ضعيفة جدا
A18: 12 | B18: تارقي عبد الفتاح | C18: تارقي عبد الفتاح | D18: 16.00 | E18: 14.00 | F18: 15.50 | G18: 11.00 | H18: 22 | I18: 13.5 | J18: 27 | K18: نتائج جد حسنة | R18: 12 | S18: تارقي عبد الفتاح | T18: تارقي عبد الفتاح | Y18: 0 | Z18: 0 | AA18: 3 | AB18: 0 | AC18: نتائج ضعيفة جدا | AJ18: 12 | AK18: تارقي عبد الفتاح | AL18: تارقي عبد الفتاح | AQ18: 0 | AR18: 0 | AS18: 3 | AT18: 0 | AU18: نتائج ضعيفة جدا
A19: 13 | B19: توجي ندى شرين سهام 1 | C19: توجي ندى شرين سهام 1 | D19: 15.00 | E19: 14.00 | F19: 09.75 | G19: 08.25 | H19: 16.5 | I19: 11.05 | J19: 22.1 | K19: نتائج متوسطة | R19: 13 | S19: توجي ندى شرين سهام 1 | T19: توجي ندى شرين سهام 1 | Y19: 0 | Z19: 0 | AA19: 3 | AB19: 0 | AC19: نتائج ضعيفة جدا | AJ19: 13 | AK19: توجي ندى شرين سهام 1 | AL19: توجي ندى شرين سهام 1 | AQ19: 0 | AR19: 0 | AS19: 3 | AT19: 0 | AU19: نتائج ضعيفة جدا
A20: 14 | B20: جطني عادل | C20: جطني عادل | D20: 13.00 | E20: 12.00 | F20: 11.75 | G20: 10.00 | H20: 20 | I20: 11.35 | J20: 22.7 | K20: نتائج متوسطة | R20: 14 | S20: جطني عادل | T20: جطني عادل | Y20: 0 | Z20: 0 | AA20: 3 | AB20: 0 | AC20: نتائج ضعيفة جدا | AJ20: 14 | AK20: جطني عادل | AL20: جطني عادل | AQ20: 0 | AR20: 0 | AS20: 3 | AT20: 0 | AU20: نتائج ضعيفة جدا
A21: 15 | B21: جلمودي آدم | C21: جلمودي آدم | D21: 11.00 | E21: 14.00 | F21: 09.75 | G21: 08.50 | H21: 17 | I21: 10.35 | J21: 20.7 | K21: نتائج متوسطة | R21: 15 | S21: جلمودي آدم | T21: جلمودي آدم | Y21: 0 | Z21: 0 | AA21: 3 | AB21: 0 | AC21: نتائج ضعيفة جدا | AJ21: 15 | AK21: جلمودي آدم | AL21: جلمودي آدم | AQ21: 0 | AR21: 0 | AS21: 3 | AT21: 0 | AU21: نتائج ضعيفة جدا
A22: 16 | B22: حكومي حنان | C22: حكومي حنان | D22: 12.50 | E22: 13.00 | F22: 07.00 | G22: 07.00 | H22: 14 | I22: 9.3 | J22: 18.6 | K22: نتائج ضعيفة | R22: 16 | S22: حكومي حنان | T22: حكومي حنان | Y22: 0 | Z22: 0 | AA22: 3 | AB22: 0 | AC22: نتائج ضعيفة جدا | AJ22: 16 | AK22: حكومي حنان | AL22: حكومي حنان | AQ22: 0 | AR22: 0 | AS22: 3 | AT22: 0 | AU22: نتائج ضعيفة جدا
A23: 17 | B23: حواص محمد عماد الدين | C23: حواص محمد عماد الدين | D23: 15.00 | E23: 14.00 | F23: 10.25 | G23: 10.75 | H23: 21.5 | I23: 12.15 | J23: 24.3 | K23: نتائج جد حسنة | R23: 17 | S23: حواص محمد عماد الدين | T23: حواص محمد عماد الدين | Y23: 0 | Z23: 0 | AA23: 3 | AB23: 0 | AC23: نتائج ضعيفة جدا | AJ23: 17 | AK23: حواص محمد عماد الدين | AL23: حواص محمد عماد الدين | AQ23: 0 | AR23: 0 | AS23: 3 | AT23: 0 | AU23: نتائج ضعيفة جدا
A24: 18 | B24: خادر فيصل | C24: خادر فيصل | D24: 14.00 | E24: 14.00 | F24: 07.75 | G24: 10.00 | H24: 20 | I24: 11.15 | J24: 22.3 | K24: نتائج متوسطة | R24: 18 | S24: خادر فيصل | T24: خادر فيصل | Y24: 0 | Z24: 0 | AA24: 3 | AB24: 0 | AC24: نتائج ضعيفة جدا | AJ24: 18 | AK24: خادر فيصل | AL24: خادر فيصل | AQ24: 0 | AR24: 0 | AS24: 3 | AT24: 0 | AU24: نتائج ضعيفة جدا
A25: 19 | B25: خليف فتحي | C25: خليف فتحي | D25: 12.00 | E25: 12.50 | F25: 06.75 | G25: 09.25 | H25: 18.5 | I25: 9.95 | J25: 19.9 | K25: نتائج ضعيفة | R25: 19 | S25: خليف فتحي | T25: خليف فتحي | Y25: 0 | Z25: 0 | AA25: 3 | AB25: 0 | AC25: نتائج ضعيفة جدا | AJ25: 19 | AK25: خليف فتحي | AL25: خليف فتحي | AQ25: 0 | AR25: 0 | AS25: 3 | AT25: 0 | AU25: نتائج ضعيفة جدا
A26: 20 | B26: دحماني محمد عبد الغاني | C26: دحماني محمد عبد الغاني | D26: 13.00 | E26: 11.00 | F26: 12.00 | G26: 10.25 | H26: 20.5 | I26: 11.3 | J26: 22.6 | K26: نتائج متوسطة | R26: 20 | S26: دحماني محمد عبد الغاني | T26: دحماني محمد عبد الغاني | Y26: 0 | Z26: 0 | AA26: 3 | AB26: 0 | AC26: نتائج ضعيفة جدا | AJ26: 20 | AK26: دحماني محمد عبد الغاني | AL26: دحماني محمد عبد الغاني | AQ26: 0 | AR26: 0 | AS26: 3 | AT26: 0 | AU26: نتائج ضعيفة جدا
A27: 21 | B27: زايد شيماء | C27: زايد شيماء | D27: 14.00 | E27: 12.00 | F27: 12.00 | G27: 09.50 | H27: 19 | I27: 11.4 | J27: 22.8 | K27: نتائج متوسطة | R27: 21 | S27: زايد شيماء | T27: زايد شيماء | Y27: 0 | Z27: 0 | AA27: 3 | AB27: 0 | AC27: نتائج ضعيفة جدا | AJ27: 21 | AK27: زايد شيماء | AL27: زايد شيماء | AQ27: 0 | AR27: 0 | AS27: 3 | AT27: 0 | AU27: نتائج ضعيفة جدا
A28: 22 | B28: زكاري اسمهان | C28: زكاري اسمهان | D28: 13.00 | E28: 14.00 | F28: 07.25 | G28: 08.25 | H28: 16.5 | I28: 10.15 | J28: 20.3 | K28: نتائج متوسطة | R28: 22 | S28: زكاري اسمهان | T28: زكاري اسمهان | Y28: 0 | Z28: 0 | AA28: 3 | AB28: 0 | AC28: نتائج ضعيفة جدا | AJ28: 22 | AK28: زكاري اسمهان | AL28: زكاري اسمهان | AQ28: 0 | AR28: 0 | AS28: 3 | AT28: 0 | AU28: نتائج ضعيفة جدا
A29: 23 | B29: سيرات فؤاد | C29: سيرات فؤاد | D29: 13.50 | E29: 12.50 | F29: 13.25 | G29: 11.00 | H29: 22 | I29: 12.25 | J29: 24.5 | K29: نتائج جد حسنة | R29: 23 | S29: سيرات فؤاد | T29: سيرات فؤاد | Y29: 0 | Z29: 0 | AA29: 3 | AB29: 0 | AC29: نتائج ضعيفة جدا | AJ29: 23 | AK29: سيرات فؤاد | AL29: سيرات فؤاد | AQ29: 0 | AR29: 0 | AS29: 3 | AT29: 0 | AU29: نتائج ضعيفة جدا
A30: 24 | B30: شيحة خولة | C30: شيحة خولة | D30: 13.00 | E30: 11.00 | F30: 12.25 | G30: 09.25 | H30: 18.5 | I30: 10.95 | J30: 21.9 | K30: نتائج متوسطة | R30: 24 | S30: شيحة خولة | T30: شيحة خولة | Y30: 0 | Z30: 0 | AA30: 3 | AB30: 0 | AC30: نتائج ضعيفة جدا | AJ30: 24 | AK30: شيحة خولة | AL30: شيحة خولة | AQ30: 0 | AR30: 0 | AS30: 3 | AT30: 0 | AU30: نتائج ضعيفة جدا
A31: 25 | B31: صباح دلال | C31: صباح دلال | D31: 11.50 | E31: 12.00 | F31: 08.25 | G31: 04.50 | H31: 9 | I31: 8.15 | J31: 16.3 | K31: نتائج ضعيفة | R31: 25 | S31: صباح دلال | T31: صباح دلال | Y31: 0 | Z31: 0 | AA31: 3 | AB31: 0 | AC31: نتائج ضعيفة جدا | AJ31: 25 | AK31: صباح دلال | AL31: صباح دلال | AQ31: 0 | AR31: 0 | AS31: 3 | AT31: 0 | AU31: نتائج ضعيفة جدا
A32: 26 | B32: عبيد حياة | C32: عبيد حياة | D32: 15.00 | E32: 13.50 | F32: 13.50 | G32: 10.50 | H32: 21 | I32: 12.6 | J32: 25.2 | K32: نتائج جد حسنة | R32: 26 | S32: عبيد حياة | T32: عبيد حياة | Y32: 0 | Z32: 0 | AA32: 3 | AB32: 0 | AC32: نتائج ضعيفة جدا | AJ32: 26 | AK32: عبيد حياة | AL32: عبيد حياة | AQ32: 0 | AR32: 0 | AS32: 3 | AT32: 0 | AU32: نتائج ضعيفة جدا
A33: 27 | B33: قاسمي رحمة | C33: قاسمي رحمة | D33: 15.00 | E33: 12.50 | F33: 09.75 | G33: 13.00 | H33: 26 | I33: 12.65 | J33: 25.3 | K33: نتائج جد حسنة | R33: 27 | S33: قاسمي رحمة | T33: قاسمي رحمة | Y33: 0 | Z33: 0 | AA33: 3 | AB33: 0 | AC33: نتائج ضعيفة جدا | AJ33: 27 | AK33: قاسمي رحمة | AL33: قاسمي رحمة | AQ33: 0 | AR33: 0 | AS33: 3 | AT33: 0 | AU33: نتائج ضعيفة جدا
A34: 28 | B34: قدير انفال | D34: 15.00 | E34: 11.50 | F34: 13.50 | G34: 11.50 | H34: 23 | I34: 12.6 | J34: 25.2 | K34: نتائج جد حسنة | R34: 28 | S34: قدير انفال | Y34: 0 | Z34: 0 | AA34: 3 | AB34: 0 | AC34: نتائج ضعيفة جدا | AJ34: 28 | AK34: قدير انفال | AQ34: 0 | AR34: 0 | AS34: 3 | AT34: 0 | AU34: نتائج ضعيفة جدا
A35: 29 | B35: لغزال عبد المجيد | D35: 11.50 | E35: 11.00 | F35: 08.75 | G35: 11.25 | H35: 22.5 | I35: 10.75 | J35: 21.5 | K35: نتائج متوسطة | R35: 29 | S35: لغزال عبد المجيد | Y35: 0 | Z35: 0 | AA35: 3 | AB35: 0 | AC35: نتائج ضعيفة جدا | AJ35: 29 | AK35: لغزال عبد المجيد | AQ35: 0 | AR35: 0 | AS35: 3 | AT35: 0 | AU35: نتائج ضعيفة جدا
A36: =A35+1 -> 30 | B36: محجوب عبد الجليل | C36: محجوب عبد الجليل | D36: 13.00 | E36: 11.00 | F36: 12.50 | G36: 05.00 | H36: 10 | I36: 9.3 | J36: 18.6 | K36: نتائج ضعيفة | R36: =R35+1 -> 30 | S36: محجوب عبد الجليل | T36: محجوب عبد الجليل | Y36: 0 | Z36: 0 | AA36: 3 | AB36: 0 | AC36: نتائج ضعيفة جدا | AJ36: =AJ35+1 -> 30 | AK36: محجوب عبد الجليل | AL36: محجوب عبد الجليل | AQ36: 0 | AR36: 0 | AS36: 3 | AT36: 0 | AU36: نتائج ضعيفة جدا
A37: 31 | B37: معراج أمينة | D37: 15.00 | E37: 12.00 | F37: 16.00 | G37: 14.00 | H37: 28 | I37: 14.2 | J37: 28.4 | K37: نتائج جيدة جدا | R37: 31 | S37: معراج أمينة | Y37: 0 | Z37: 0 | AA37: 3 | AB37: 0 | AC37: نتائج ضعيفة جدا | AJ37: 31 | AK37: معراج أمينة | AQ37: 0 | AR37: 0 | AS37: 3 | AT37: 0 | AU37: نتائج ضعيفة جدا
A38: 32 | B38: معمري نورية | D38: 15 | E38: 12 | F38: 7 | G38: 09.00 | H38: 18 | I38: 10.4 | J38: 20.8 | K38: نتائج متوسطة | R38: 32 | S38: معمري نورية | Y38: 0 | Z38: 0 | AA38: 3 | AB38: 0 | AC38: نتائج ضعيفة جدا | AJ38: 32 | AK38: معمري نورية | AQ38: 0 | AR38: 0 | AS38: 3 | AT38: 0 | AU38: نتائج ضعيفة جدا
B41: فوق المعدل | D41: =COUNTIF(I7:I38,">=10") -> 25 | F41: تحت المعدل | H41: =COUNTIF(I7:I38,"<10") -> 7 | J41: معدل القسم | K41: =AVERAGE(I7:I38) -> 11.08125 | S41: فوق المعدل | U41: =COUNTIF(Z7:Z36,">=10") -> 0 | W41: تحت المعدل | Y41: =COUNTIF(Z7:Z39,"<10") -> 32 | AA41: معدل القسم | AC41: =AVERAGE(Z7:Z38) -> 0 | AK41: فوق المعدل | AM41: =COUNTIF(AR7:AR36,">=10") -> 0 | AO41: تحت المعدل | AQ41: =COUNTIF(AR7:AR39,"<10") -> 32 | AS41: معدل القسم | AU41: =AVERAGE(AR7:AR38) -> 0
A47: ثانوية :الشهيد سعيداني أحمد | E47: الفصل الثاني | I47: الــــــــمادة : آداب وفلســــــفة
A48: القســــــــــــــــم: 2ع.تج2 | I48: الموسم الدراسى: 2019/2018
A49: الأستاذة : حـــــمان يمنى | I49: ولايــــــة : بشــــــار | N49: أنشطـــــــة التقويــــــــم
A50: القـــــــــــــــــــــــــائمة الاسمية للتلاميـــــــــــــــــــــــــــــــــــذ
A52: الرقم | B52: الاسم و اللقب | D52: م.المستمرة | E52: تط/شفهي | F52: معدل الفروض | G52: الاختبار | H52: الاختبار*2 | I52: المعدل | J52: م.المعامل | K52: الملاحظة | N52: تعبير كتابي | O52: واجب منزلي | P52: مشروع
A53: 1 | B53: أولا نصير رياض | C53: أولا نصير رياض | H53: =G53*2 -> 0 | I53: =(H53+F53+E53+D53)/5 -> 0 | J53: =I53*2 -> 0 | K53: =IF(I53>=18,"نتائج ممتازة",IF(I53>=14,"نتائج جيدة جدا",IF(I53>=12," نتائج جد حسنة",IF(I53>=10,"نتائج متوسطة",IF(I53>=7,"نتائج ضعيفة","نتائج ضعيفة جدا"))))) -> نتائج ضعيفة جدا
A54: =A53+1 -> 2 | B54: بركات بشرى | C54: بركات بشرى | H54: =G54*2 -> 0 | I54: =(H54+F54+E54+D54)/5 -> 0 | J54: =I54*2 -> 0 | K54: نتائج ضعيفة جدا
A55: =A54+1 -> 3 | B55: بقوق نجيب | C55: بقوق نجيب | H55: 0 | I55: 0 | J55: 0 | K55: نتائج ضعيفة جدا
A56: =A55+1 -> 4 | B56: بلعيد ايمان | C56: بلعيد ايمان | H56: 0 | I56: 0 | J56: 0 | K56: نتائج ضعيفة جدا
A57: 5 | B57: بن خادر خالد | C57: بن خادر خالد | H57: 0 | I57: 0 | J57: 0 | K57: نتائج ضعيفة جدا
A58: 6 | B58: بن دادة محمد اكرم | C58: بن دادة محمد اكرم | H58: 0 | I58: 0 | J58: 0 | K58: نتائج ضعيفة جدا
A59: 7 | B59: بن صابرو محمد | C59: بن صابرو محمد | H59: 0 | I59: 0 | J59: 0 | K59: نتائج ضعيفة جدا
A60: =A59+1 -> 8 | B60: بن عامر أسامة | C60: بن عامر أسامة | H60: 0 | I60: 0 | J60: 0 | K60: نتائج ضعيفة جدا
A61: 9 | B61: بن مجاهد هند | C61: بن مجاهد هند | H61: 0 | I61: 0 | J61: 0 | K61: نتائج ضعيفة جدا
A62: 10 | B62: بن معطي الحاج محمد | C62: بن معطي الحاج محمد | H62: 0 | I62: 0 | J62: 0 | K62: نتائج ضعيفة جدا
A63: 11 | B63: بوشيخي أحمد | C63: بوشيخي أحمد | H63: 0 | I63: 0 | J63: 0 | K63: نتائج ضعيفة جدا
A64: 12 | B64: تارقي عبد الفتاح | C64: تارقي عبد الفتاح | H64: 0 | I64: 0 | J64: 0 | K64: نتائج ضعيفة جدا
A65: 13 | B65: توجي ندى شرين سهام 1 | C65: توجي ندى شرين سهام 1 | H65: 0 | I65: 0 | J65: 0 | K65: نتائج ضعيفة جدا
A66: 14 | B66: جطني عادل | C66: جطني عادل | H66: 0 | I66: 0 | J66: 0 | K66: نتائج ضعيفة جدا
A67: 15 | B67: جلمودي آدم | C67: جلمودي آدم | H67: 0 | I67: 0 | J67: 0 | K67: نتائج ضعيفة جدا
A68: 16 | B68: حكومي حنان | C68: حكومي حنان | H68: 0 | I68: 0 | J68: 0 | K68: نتائج ضعيفة جدا
A69: 17 | B69: حواص محمد عماد الدين | C69: حواص محمد عماد الدين | H69: 0 | I69: 0 | J69: 0 | K69: نتائج ضعيفة جدا
A70: 18 | B70: خادر فيصل | C70: خادر فيصل | H70: 0 | I70: 0 | J70: 0 | K70: نتائج ضعيفة جدا
A71: 19 | B71: خليف فتحي | C71: خليف فتحي | H71: 0 | I71: 0 | J71: 0 | K71: نتائج ضعيفة جدا
A72: 20 | B72: دحماني محمد عبد الغاني | C72: دحماني محمد عبد الغاني | H72: 0 | I72: 0 | J72: 0 | K72: نتائج ضعيفة جدا
A73: 21 | B73: زايد شيماء | C73: زايد شيماء | H73: 0 | I73: 0 | J73: 0 | K73: نتائج ضعيفة جدا
A74: 22 | B74: زكاري اسمهان | C74: زكاري اسمهان | H74: 0 | I74: 0 | J74: 0 | K74: نتائج ضعيفة جدا
A75: 23 | B75: سيرات فؤاد | C75: سيرات فؤاد | H75: 0 | I75: 0 | J75: 0 | K75: نتائج ضعيفة جدا
A76: 24 | B76: شيحة خولة | C76: شيحة خولة | H76: 0 | I76: 0 | J76: 0 | K76: نتائج ضعيفة جدا
A77: 25 | B77: صباح دلال | C77: صباح دلال | H77: 0 | I77: 0 | J77: 0 | K77: نتائج ضعيفة جدا
A78: 26 | B78: عبيد حياة | C78: عبيد حياة | H78: 0 | I78: 0 | J78: 0 | K78: نتائج ضعيفة جدا
A79: 27 | B79: قاسمي رحمة | C79: قاسمي رحمة | H79: 0 | I79: 0 | J79: 0 | K79: نتائج ضعيفة جدا
A80: 28 | B80: قدير انفال | H80: 0 | I80: 0 | J80: 0 | K80: نتائج ضعيفة جدا
A81: 29 | B81: لغزال عبد المجيد | H81: 0 | I81: 0 | J81: 0 | K81: نتائج ضعيفة جدا
A82: 30 | B82: محجوب عبد الجليل | C82: محجوب عبد الجليل | H82: 0 | I82: 0 | J82: 0 | K82: نتائج ضعيفة جدا
A83: 31 | B83: معراج أمينة | H83: 0 | I83: 0 | J83: 0 | K83: نتائج ضعيفة جدا
A84: 32 | B84: معمري نورية | H84: 0 | I84: =(H84+F84+E84+D84)/5 -> 0 | J84: 0 | K84: نتائج ضعيفة جدا
B87: فوق المعدل | D87: =COUNTIF(I53:I84,">=10") -> 0 | F87: تحت المعدل | H87: =COUNTIF(I53:I84,"<10") -> 32 | J87: معدل القسم | K87: =AVERAGE(I53:I84) -> 0
A93: ثانوية :الشهيد سعيداني أحمد | E93: الفصل الثالث | I93: الــــــــمادة : آداب وفلســــــفة
A94: القســــــــــــــــم: 2ع.تج2 | I94: الموسم الدراسى: 2019/2018
A95: الأستاذة : حـــــمان يمنى | I95: ولايــــــة : بشــــــار | N95: أنشطـــــــة التقويــــــــم
A96: القـــــــــــــــــــــــــائمة الاسمية للتلاميـــــــــــــــــــــــــــــــــــذ
A98: الرقم | B98: الاسم و اللقب | D98: م.المستمرة | E98: تط/شفهي | F98: معدل الفروض | G98: الاختبار | H98: الاختبار*2 | I98: المعدل | J98: م.المعامل | K98: الملاحظة | N98: تعبير كتابي | O98: واجب منزلي | P98: مشروع
A99: 1 | B99: أولا نصير رياض | C99: أولا نصير رياض | H99: =G99*2 -> 0 | I99: =(H99+F99+E99+D99)/5 -> 0 | J99: =I99*2 -> 0 | K99: =IF(I99>=18,"نتائج ممتازة",IF(I99>=14,"نتائج جيدة جدا",IF(I99>=12," نتائج جد حسنة",IF(I99>=10,"نتائج متوسطة",IF(I99>=7,"نتائج ضعيفة","نتائج ضعيفة جدا"))))) -> نتائج ضعيفة جدا
A100: =A99+1 -> 2 | B100: بركات بشرى | C100: بركات بشرى | H100: =G100*2 -> 0 | I100: =(H100+F100+E100+D100)/5 -> 0 | J100: =I100*2 -> 0 | K100: نتائج ضعيفة جدا
A101: =A100+1 -> 3 | B101: بقوق نجيب | C101: بقوق نجيب | H101: 0 | I101: 0 | J101: 0 | K101: نتائج ضعيفة جدا
A102: =A101+1 -> 4 | B102: بلعيد ايمان | C102: بلعيد ايمان | H102: 0 | I102: 0 | J102: 0 | K102: نتائج ضعيفة جدا
A103: 5 | B103: بن خادر خالد | C103: بن خادر خالد | H103: 0 | I103: 0 | J103: 0 | K103: نتائج ضعيفة جدا
A104: 6 | B104: بن دادة محمد اكرم | C104: بن دادة محمد اكرم | H104: 0 | I104: 0 | J104: 0 | K104: نتائج ضعيفة جدا
A105: 7 | B105: بن صابرو محمد | C105: بن صابرو محمد | H105: 0 | I105: 0 | J105: 0 | K105: نتائج ضعيفة جدا
A106: =A105+1 -> 8 | B106: بن عامر أسامة | C106: بن عامر أسامة | H106: 0 | I106: 0 | J106: 0 | K106: نتائج ضعيفة جدا
A107: 9 | B107: بن مجاهد هند | C107: بن مجاهد هند | H107: 0 | I107: 0 | J107: 0 | K107: نتائج ضعيفة جدا
A108: 10 | B108: بن معطي الحاج محمد | C108: بن معطي الحاج محمد | H108: 0 | I108: 0 | J108: 0 | K108: نتائج ضعيفة جدا
A109: 11 | B109: بوشيخي أحمد | C109: بوشيخي أحمد | H109: 0 | I109: 0 | J109: 0 | K109: نتائج ضعيفة جدا
A110: 12 | B110: تارقي عبد الفتاح | C110: تارقي عبد الفتاح | H110: 0 | I110: 0 | J110: 0 | K110: نتائج ضعيفة جدا
A111: 13 | B111: توجي ندى شرين سهام 1 | C111: توجي ندى شرين سهام 1 | H111: 0 | I111: 0 | J111: 0 | K111: نتائج ضعيفة جدا
A112: 14 | B112: جطني عادل | C112: جطني عادل | H112: 0 | I112: 0 | J112: 0 | K112: نتائج ضعيفة جدا
A113: 15 | B113: جلمودي آدم | C113: جلمودي آدم | H113: 0 | I113: 0 | J113: 0 | K113: نتائج ضعيفة جدا
A114: 16 | B114: حكومي حنان | C114: حكومي حنان | H114: 0 | I114: 0 | J114: 0 | K114: نتائج ضعيفة جدا
A115: 17 | B115: حواص محمد عماد الدين | C115: حواص محمد عماد الدين | H115: 0 | I115: 0 | J115: 0 | K115: نتائج ضعيفة جدا
A116: 18 | B116: خادر فيصل | C116: خادر فيصل | H116: 0 | I116: 0 | J116: 0 | K116: نتائج ضعيفة جدا
A117: 19 | B117: خليف فتحي | C117: خليف فتحي | H117: 0 | I117: 0 | J117: 0 | K117: نتائج ضعيفة جدا
A118: 20 | B118: دحماني محمد عبد الغاني | C118: دحماني محمد عبد الغاني | H118: 0 | I118: 0 | J118: 0 | K118: نتائج ضعيفة جدا
A119: 21 | B119: زايد شيماء | C119: زايد شيماء | H119: 0 | I119: 0 | J119: 0 | K119: نتائج ضعيفة جدا
A120: 22 | B120: زكاري اسمهان | C120: زكاري اسمهان | H120: 0 | I120: 0 | J120: 0 | K120: نتائج ضعيفة جدا
A121: 23 | B121: سيرات فؤاد | C121: سيرات فؤاد | H121: 0 | I121: 0 | J121: 0 | K121: نتائج ضعيفة جدا
A122: 24 | B122: شيحة خولة | C122: شيحة خولة | H122: 0 | I122: 0 | J122: 0 | K122: نتائج ضعيفة جدا
A123: 25 | B123: صباح دلال | C123: صباح دلال | H123: 0 | I123: 0 | J123: 0 | K123: نتائج ضعيفة جدا
A124: 26 | B124: عبيد حياة | C124: عبيد حياة | H124: 0 | I124: 0 | J124: 0 | K124: نتائج ضعيفة جدا
A125: 27 | B125: قاسمي رحمة | C125: قاسمي رحمة | H125: 0 | I125: 0 | J125: 0 | K125: نتائج ضعيفة جدا
A126: 28 | B126: قدير انفال | H126: 0 | I126: 0 | J126: 0 | K126: نتائج ضعيفة جدا
A127: 29 | B127: لغزال عبد المجيد | H127: 0 | I127: 0 | J127: 0 | K127: نتائج ضعيفة جدا
A128: 30 | B128: محجوب عبد الجليل | C128: محجوب عبد الجليل | H128: 0 | I128: 0 | J128: 0 | K128: نتائج ضعيفة جدا
A129: 31 | B129: معراج أمينة | H129: 0 | I129: 0 | J129: 0 | K129: نتائج ضعيفة جدا
A130: 32 | B130: معمري نورية | H130: 0 | I130: 0 | J130: 0 | K130: نتائج ضعيفة جدا
B133: فوق المعدل | D133: =COUNTIF(I99:I130,">=10") -> 0 | F133: تحت المعدل | H133: =COUNTIF(I99:I130,"<10") -> 32 | J133: معدل القسم | K133: =AVERAGE(I99:I130) -> 0

Sheet 3تسيير و إقتصاد
A1: ثانوية :الشهيد سعيداني أحمد | E1: الفصل الاول | I1: الــــــــمادة : اللغة العربية و آدابهـــا | R1: ثانوية :الشه+S1:AE26يد سعيداني أحمد | V1: الفصل الثاني | Z1: الــــــــمادة : آداب وفلســــــفة | AJ1: ثانوية :الشه+S1:AE26يد سعيداني أحمد | AN1: الفصل الثالث | AR1: الــــــــمادة : آداب وفلســــــفة
A2: القســــــــــــــــم: 3ت.إق | I2: الموسم الدراسى: 2019/2018 | R2: القســــــــــــــــم: 3ت.إق | Z2: الموسم الدراسى: 2019/2018 | AJ2: القســــــــــــــــم: 3ت.إق | AR2: الموسم الدراسى: 2019/2018
A3: الأستاذة : حـــــمان يمنى | I3: ولايــــــة : بشــــــار | N3: أنشطـــــــة التقويــــــــم | R3: الأستاذة : حـــــمان يمنى | Z3: ولايــــــة : بشــــــار | AJ3: الأستاذة : حـــــمان يمنى | AR3: ولايــــــة : بشــــــار
A4: القـــــــــــــــــــــــــائمة الاسمية للتلاميـــــــــــــــــــــــــــــــــــذ | R4: القـــــــــــــــــــــــــائمة الاسمية للتلاميـــــــــــــــــــــــــــــــــــذ | AJ4: القـــــــــــــــــــــــــائمة الاسمية للتلاميـــــــــــــــــــــــــــــــــــذ
A6: الرقم | B6: الاسم و اللقب | D6: م.المستمرة | E6: تط/شفهي | F6: معدل الفروض | G6: الاختبار | H6: الاختبار/40 | I6: المعدل | J6: م.المعامل | K6: الملاحظة | N6: تعبير كتابي | O6: واجب منزلي | P6: مشروع | R6: الرقم | S6: الاسم و اللقب | U6: م.المستمرة | V6: تط/شفهي | W6: معدل الفروض | X6: الاختبار | Y6: الاختبار*2 | Z6: المعدل | AA6: المعامل | AB6: المجموع | AC6: الملاحظة | AJ6: الرقم | AK6: الاسم و اللقب | AM6: م.المستمرة | AN6: تط/شفهي | AO6: معدل الفروض | AP6: الاختبار | AQ6: الاختبار*2 | AR6: المعدل | AS6: المعامل | AT6: المجموع | AU6: الملاحظة
A7: 1 | B7: العياشي عائشة | C7: العياشي عائشة | D7: 14.00 | E7: 12.00 | F7: 12.00 | G7: 12.50 | H7: =G7*2 -> 25 | I7: =(H7+F7+E7+D7)/5 -> 12.6 | J7: =I7*3 -> 37.8 | K7: =IF(I7>=18,"نتائج ممتازة",IF(I7>=14,"نتائج جيدة جدا",IF(I7>=12," نتائج جد حسنة",IF(I7>=10,"نتائج متوسطة",IF(I7>=7,"نتائج ضعيفة","نتائج ضعيفة جدا"))))) -> نتائج جد حسنة | R7: 1 | S7: العياشي عائشة | T7: العياشي عائشة | Y7: =X7*2 -> 0 | Z7: =(Y7+W7)/3 -> 0 | AA7: 3 | AB7: =Z7*AA7 -> 0 | AC7: =IF(Z7>=18,"نتائج ممتازة",IF(Z7>=14,"نتائج جيدة جدا",IF(Z7>=12," نتائج جد حسنة",IF(Z7>=10,"نتائج متوسطة",IF(Z7>=7,"نتائج ضعيفة","نتائج ضعيفة جدا"))))) -> نتائج ضعيفة جدا | AJ7: 1 | AK7: العياشي عائشة | AL7: العياشي عائشة | AQ7: =AP7*2 -> 0 | AR7: =(AQ7+AO7)/3 -> 0 | AS7: 3 | AT7: =AR7*AS7 -> 0 | AU7: =IF(AR7>=18,"نتائج ممتازة",IF(AR7>=14,"نتائج جيدة جدا",IF(AR7>=12," نتائج جد حسنة",IF(AR7>=10,"نتائج متوسطة",IF(AR7>=7,"نتائج ضعيفة","نتائج ضعيفة جدا"))))) -> نتائج ضعيفة جدا
A8: 2 | B8: برهمي أمين | C8: برهمي أمين | D8: 10.00 | E8: 10.00 | F8: 06.00 | G8: 06.00 | H8: =G8*2 -> 12 | I8: =(H8+F8+E8+D8)/5 -> 7.6 | J8: =I8*3 -> 22.8 | K8: نتائج ضعيفة | R8: 2 | S8: برهمي أمين | T8: برهمي أمين | Y8: =X8*2 -> 0 | Z8: =(Y8+W8)/3 -> 0 | AA8: 3 | AB8: =Z8*AA8 -> 0 | AC8: نتائج ضعيفة جدا | AJ8: 2 | AK8: برهمي أمين | AL8: برهمي أمين | AQ8: =AP8*2 -> 0 | AR8: =(AQ8+AO8)/3 -> 0 | AS8: 3 | AT8: =AR8*AS8 -> 0 | AU8: نتائج ضعيفة جدا
A9: 3 | B9: بلقاسم سارة | C9: بلقاسم سارة | D9: 13.00 | E9: 12.00 | F9: 11.00 | G9: 11.25 | H9: 22.5 | I9: 11.7 | J9: 35.1 | K9: نتائج متوسطة | R9: 3 | S9: بلقاسم سارة | T9: بلقاسم سارة | Y9: 0 | Z9: 0 | AA9: 3 | AB9: 0 | AC9: نتائج ضعيفة جدا | AJ9: 3 | AK9: بلقاسم سارة | AL9: بلقاسم سارة | AQ9: 0 | AR9: 0 | AS9: 3 | AT9: 0 | AU9: نتائج ضعيفة جدا
A10: 4 | B10: بن أحمد محمد لأمين | C10: بن أحمد محمد لأمين | D10: 12.00 | E10: 11.00 | F10: 06.00 | G10: 07.50 | H10: 15 | I10: 8.8 | J10: 26.4 | K10: نتائج ضعيفة | R10: 4 | S10: بن أحمد محمد لأمين | T10: بن أحمد محمد لأمين | Y10: 0 | Z10: 0 | AA10: 3 | AB10: 0 | AC10: نتائج ضعيفة جدا | AJ10: 4 | AK10: بن أحمد محمد لأمين | AL10: بن أحمد محمد لأمين | AQ10: 0 | AR10: 0 | AS10: 3 | AT10: 0 | AU10: نتائج ضعيفة جدا
A11: 5 | B11: بودي إلياس | C11: بودي إلياس | D11: 11.00 | E11: 10.00 | F11: 08.00 | G11: 06.50 | H11: 13 | I11: 8.4 | J11: 25.2 | K11: نتائج ضعيفة | R11: 5 | S11: بودي إلياس | T11: بودي إلياس | Y11: 0 | Z11: 0 | AA11: 3 | AB11: 0 | AC11: نتائج ضعيفة جدا | AJ11: 5 | AK11: بودي إلياس | AL11: بودي إلياس | AQ11: 0 | AR11: 0 | AS11: 3 | AT11: 0 | AU11: نتائج ضعيفة جدا
A12: 6 | B12: بودي سمية | C12: بودي سمية | D12: 14.00 | E12: 12.00 | F12: 10.50 | G12: 13.00 | H12: 26 | I12: 12.5 | J12: 37.5 | K12: نتائج جد حسنة | R12: 6 | S12: بودي سمية | T12: بودي سمية | Y12: 0 | Z12: 0 | AA12: 3 | AB12: 0 | AC12: نتائج ضعيفة جدا | AJ12: 6 | AK12: بودي سمية | AL12: بودي سمية | AQ12: 0 | AR12: 0 | AS12: 3 | AT12: 0 | AU12: نتائج ضعيفة جدا
A13: 7 | B13: تونسي حنان | C13: تونسي حنان | D13: 14.00 | E13: 12.00 | F13: 07.25 | G13: 14.00 | H13: 28 | I13: 12.25 | J13: 36.75 | K13: نتائج جد حسنة | R13: 7 | S13: تونسي حنان | T13: تونسي حنان | Y13: 0 | Z13: 0 | AA13: 3 | AB13: 0 | AC13: نتائج ضعيفة جدا | AJ13: 7 | AK13: تونسي حنان | AL13: تونسي حنان | AQ13: 0 | AR13: 0 | AS13: 3 | AT13: 0 | AU13: نتائج ضعيفة جدا
A14: 8 | B14: حكومي أحمد عبد الكريم | C14: حكومي أحمد عبد الكريم | D14: 10.00 | E14: 10.00 | F14: 06.00 | G14: 03.25 | H14: 6.5 | I14: 6.5 | J14: 19.5 | K14: نتائج ضعيفة جدا | R14: 8 | S14: حكومي أحمد عبد الكريم | T14: حكومي أحمد عبد الكريم | Y14: 0 | Z14: 0 | AA14: 3 | AB14: 0 | AC14: نتائج ضعيفة جدا | AJ14: 8 | AK14: حكومي أحمد عبد الكريم | AL14: حكومي أحمد عبد الكريم | AQ14: 0 | AR14: 0 | AS14: 3 | AT14: 0 | AU14: نتائج ضعيفة جدا
A15: 9 | B15: دحام فاطمة الزهراء | C15: دحام فاطمة الزهراء | D15: 13.50 | E15: 12.00 | F15: 08.25 | G15: 07.25 | H15: 14.5 | I15: 9.65 | J15: 28.95 | K15: نتائج ضعيفة | R15: 9 | S15: دحام فاطمة الزهراء | T15: دحام فاطمة الزهراء | Y15: 0 | Z15: 0 | AA15: 3 | AB15: 0 | AC15: نتائج ضعيفة جدا | AJ15: 9 | AK15: دحام فاطمة الزهراء | AL15: دحام فاطمة الزهراء | AQ15: 0 | AR15: 0 | AS15: 3 | AT15: 0 | AU15: نتائج ضعيفة جدا
A16: 10 | B16: صديقي أمال | D16: 12.00 | E16: 11.00 | F16: 7 | G16: 08.50 | H16: 17 | I16: 9.4 | J16: 28.2 | K16: نتائج ضعيفة | R16: 10 | S16: صديقي أمال | Y16: 0 | Z16: 0 | AA16: 3 | AB16: 0 | AC16: نتائج ضعيفة جدا | AJ16: 10 | AK16: صديقي أمال | AQ16: 0 | AR16: 0 | AS16: 3 | AT16: 0 | AU16: نتائج ضعيفة جدا
A17: 11 | B17: صديقي نور الهدى | C17: صديقي نور الهدى | D17: 12.00 | E17: 11.00 | F17: 07.00 | G17: 09.50 | H17: 19 | I17: 9.8 | J17: 29.4 | K17: نتائج ضعيفة | R17: 11 | S17: صديقي نور الهدى | T17: صديقي نور الهدى | Y17: 0 | Z17: 0 | AA17: 3 | AB17: 0 | AC17: نتائج ضعيفة جدا | AJ17: 11 | AK17: صديقي نور الهدى | AL17: صديقي نور الهدى | AQ17: 0 | AR17: 0 | AS17: 3 | AT17: 0 | AU17: نتائج ضعيفة جدا
A18: 12 | B18: عبد الحق شهرزاد | C18: عبد الحق شهرزاد | D18: 13.50 | E18: 12.00 | F18: 11 | G18: 11.25 | H18: 22.5 | I18: 11.8 | J18: 35.4 | K18: نتائج متوسطة | R18: 12 | S18: عبد الحق شهرزاد | T18: عبد الحق شهرزاد | Y18: 0 | Z18: 0 | AA18: 3 | AB18: 0 | AC18: نتائج ضعيفة جدا | AJ18: 12 | AK18: عبد الحق شهرزاد | AL18: عبد الحق شهرزاد | AQ18: 0 | AR18: 0 | AS18: 3 | AT18: 0 | AU18: نتائج ضعيفة جدا
A19: 13 | B19: عفوس نور الهدى | C19: عفوس نور الهدى | D19: 11.00 | E19: 10.00 | F19: 05.00 | G19: 09.00 | H19: 18 | I19: 8.8 | J19: 26.4 | K19: نتائج ضعيفة | R19: 13 | S19: عفوس نور الهدى | T19: عفوس نور الهدى | Y19: 0 | Z19: 0 | AA19: 3 | AB19: 0 | AC19: نتائج ضعيفة جدا | AJ19: 13 | AK19: عفوس نور الهدى | AL19: عفوس نور الهدى | AQ19: 0 | AR19: 0 | AS19: 3 | AT19: 0 | AU19: نتائج ضعيفة جدا
A20: 14 | B20: مازوز وكيب | C20: مازوز وكيب | D20: 12.00 | E20: 11.50 | F20: 03.00 | G20: 12.50 | H20: 25 | I20: 10.3 | J20: 30.9 | K20: نتائج متوسطة | R20: 14 | S20: مازوز وكيب | T20: مازوز وكيب | Y20: 0 | Z20: 0 | AA20: 3 | AB20: 0 | AC20: نتائج ضعيفة جدا | AJ20: 14 | AK20: مازوز وكيب | AL20: مازوز وكيب | AQ20: 0 | AR20: 0 | AS20: 3 | AT20: 0 | AU20: نتائج ضعيفة جدا
A21: 15 | B21: محمودي أيمن | C21: محمودي أيمن | D21: 12.00 | E21: 11.00 | F21: 07.50 | G21: 08.50 | H21: 17 | I21: 9.5 | J21: 28.5 | K21: نتائج ضعيفة | R21: 15 | S21: محمودي أيمن | T21: محمودي أيمن | Y21: 0 | Z21: 0 | AA21: 3 | AB21: 0 | AC21: نتائج ضعيفة جدا | AJ21: 15 | AK21: محمودي أيمن | AL21: محمودي أيمن | AQ21: 0 | AR21: 0 | AS21: 3 | AT21: 0 | AU21: نتائج ضعيفة جدا
A22: 16 | B22: مخلوفي الفاروق | C22: مخلوفي الفاروق | D22: 10.00 | E22: 08.00 | F22: 03.50 | G22: 06.25 | H22: 12.5 | I22: 6.8 | J22: 20.4 | K22: نتائج ضعيفة جدا | R22: 16 | S22: مخلوفي الفاروق | T22: مخلوفي الفاروق | Y22: 0 | Z22: 0 | AA22: 3 | AB22: 0 | AC22: نتائج ضعيفة جدا | AJ22: 16 | AK22: مخلوفي الفاروق | AL22: مخلوفي الفاروق | AQ22: 0 | AR22: 0 | AS22: 3 | AT22: 0 | AU22: نتائج ضعيفة جدا
A23: 17 | B23: مسعودي نصيرة | C23: مسعودي نصيرة | D23: 13.00 | E23: 12.00 | F23: 04.75 | G23: 11.25 | H23: 22.5 | I23: 10.45 | J23: 31.35 | K23: نتائج متوسطة | R23: 17 | S23: مسعودي نصيرة | T23: مسعودي نصيرة | Y23: 0 | Z23: 0 | AA23: 3 | AB23: 0 | AC23: نتائج ضعيفة جدا | AJ23: 17 | AK23: مسعودي نصيرة | AL23: مسعودي نصيرة | AQ23: 0 | AR23: 0 | AS23: 3 | AT23: 0 | AU23: نتائج ضعيفة جدا
A24: 18 | B24: معمري فايزة | C24: معمري فايزة | D24: 12.50 | E24: 11.50 | F24: 05.25 | G24: 06.50 | H24: 13 | I24: 8.45 | J24: 25.35 | K24: نتائج ضعيفة | R24: 18 | S24: معمري فايزة | T24: معمري فايزة | Y24: 0 | Z24: 0 | AA24: 3 | AB24: 0 | AC24: نتائج ضعيفة جدا | AJ24: 18 | AK24: معمري فايزة | AL24: معمري فايزة | AQ24: 0 | AR24: 0 | AS24: 3 | AT24: 0 | AU24: نتائج ضعيفة جدا
A25: 19 | B25: هدلي هشام | C25: هدلي هشام | D25: 12.00 | E25: 11.00 | F25: 08.00 | G25: 10.50 | H25: 21 | I25: 10.4 | J25: 31.2 | K25: نتائج متوسطة | R25: 19 | S25: هدلي هشام | T25: هدلي هشام | Y25: 0 | Z25: 0 | AA25: 3 | AB25: 0 | AC25: نتائج ضعيفة جدا | AJ25: 19 | AK25: هدلي هشام | AL25: هدلي هشام | AQ25: 0 | AR25: 0 | AS25: 3 | AT25: 0 | AU25: نتائج ضعيفة جدا
A26: 20 | B26: هلال ريناس | C26: هلال ريناس | D26: 13.50 | E26: 12.00 | F26: 03.75 | G26: 08.50 | H26: 17 | I26: 9.25 | J26: 27.75 | K26: نتائج ضعيفة | R26: 20 | S26: هلال ريناس | T26: هلال ريناس | Y26: 0 | Z26: 0 | AA26: 3 | AB26: 0 | AC26: نتائج ضعيفة جدا | AJ26: 20 | AK26: هلال ريناس | AL26: هلال ريناس | AQ26: 0 | AR26: 0 | AS26: 3 | AT26: 0 | AU26: نتائج ضعيفة جدا
B29: فوق المعدل | D29: =COUNTIF(I7:I26,">=10") -> 8 | F29: تحت المعدل | H29: =COUNTIF(I7:I27,"<10") -> 12 | J29: معدل القسم | K29: =AVERAGE(I7:I26) -> 9.7475 | S29: فوق المعدل | U29: =COUNTIF(Z7:Z26,">=10") -> 0 | W29: تحت المعدل | Y29: =COUNTIF(Z7:Z27,"<10") -> 20 | AA29: معدل القسم | AC29: =AVERAGE(Z7:Z26) -> 0 | AK29: فوق المعدل | AM29: =COUNTIF(AR7:AR26,">=10") -> 0 | AO29: تحت المعدل | AQ29: =COUNTIF(AR7:AR27,"<10") -> 20 | AS29: معدل القسم | AU29: =AVERAGE(AR7:AR26) -> 0
A35: ثانوية :الشهيد سعيداني أحمد | E35: الفصل الثاني | I35: الــــــــمادة : اللغة العربية و آدابهـــا
A36: القســــــــــــــــم: 3ت.إق | I36: الموسم الدراسى: 2019/2018
A37: الأستاذة : حـــــمان يمنى | I37: ولايــــــة : بشــــــار | N37: أنشطـــــــة التقويــــــــم
A38: القـــــــــــــــــــــــــائمة الاسمية للتلاميـــــــــــــــــــــــــــــــــــذ
A40: الرقم | B40: الاسم و اللقب | D40: م.المستمرة | E40: تط/شفهي | F40: معدل الفروض | G40: الاختبار | H40: الاختبار/40 | I40: المعدل | J40: م.المعامل | K40: الملاحظة | N40: تعبير كتابي | O40: واجب منزلي | P40: مشروع
A41: 1 | B41: العياشي عائشة | C41: العياشي عائشة | H41: =G41*2 -> 0 | I41: =(H41+F41+E41+D41)/5 -> 0 | J41: =I41*3 -> 0 | K41: =IF(I41>=18,"نتائج ممتازة",IF(I41>=14,"نتائج جيدة جدا",IF(I41>=12," نتائج جد حسنة",IF(I41>=10,"نتائج متوسطة",IF(I41>=7,"نتائج ضعيفة","نتائج ضعيفة جدا"))))) -> نتائج ضعيفة جدا
A42: 2 | B42: برهمي أمين | C42: برهمي أمين | H42: =G42*2 -> 0 | I42: =(H42+F42+E42+D42)/5 -> 0 | J42: =I42*3 -> 0 | K42: نتائج ضعيفة جدا
A43: 3 | B43: بلقاسم سارة | C43: بلقاسم سارة | H43: 0 | I43: 0 | J43: 0 | K43: نتائج ضعيفة جدا
A44: 4 | B44: بن أحمد محمد لأمين | C44: بن أحمد محمد لأمين | H44: 0 | I44: 0 | J44: 0 | K44: نتائج ضعيفة جدا
A45: 5 | B45: بودي إلياس | C45: بودي إلياس | H45: 0 | I45: 0 | J45: 0 | K45: نتائج ضعيفة جدا
A46: 6 | B46: بودي سمية | C46: بودي سمية | H46: 0 | I46: 0 | J46: 0 | K46: نتائج ضعيفة جدا
A47: 7 | B47: تونسي حنان | C47: تونسي حنان | H47: 0 | I47: 0 | J47: 0 | K47: نتائج ضعيفة جدا
A48: 8 | B48: حكومي أحمد عبد الكريم | C48: حكومي أحمد عبد الكريم | H48: 0 | I48: 0 | J48: 0 | K48: نتائج ضعيفة جدا
A49: 9 | B49: دحام فاطمة الزهراء | C49: دحام فاطمة الزهراء | H49: 0 | I49: 0 | J49: 0 | K49: نتائج ضعيفة جدا
A50: 10 | B50: صديقي أمال | H50: 0 | I50: 0 | J50: 0 | K50: نتائج ضعيفة جدا
A51: 11 | B51: صديقي نور الهدى | C51: صديقي نور الهدى | H51: 0 | I51: 0 | J51: 0 | K51: نتائج ضعيفة جدا
A52: 12 | B52: عبد الحق شهرزاد | C52: عبد الحق شهرزاد | H52: 0 | I52: 0 | J52: 0 | K52: نتائج ضعيفة جدا
A53: 13 | B53: عفوس نور الهدى | C53: عفوس نور الهدى | H53: 0 | I53: 0 | J53: 0 | K53: نتائج ضعيفة جدا
A54: 14 | B54: مازوز وكيب | C54: مازوز وكيب | H54: 0 | I54: 0 | J54: 0 | K54: نتائج ضعيفة جدا
A55: 15 | B55: محمودي أيمن | C55: محمودي أيمن | H55: 0 | I55: 0 | J55: 0 | K55: نتائج ضعيفة جدا
A56: 16 | B56: مخلوفي الفاروق | C56: مخلوفي الفاروق | H56: 0 | I56: 0 | J56: 0 | K56: نتائج ضعيفة جدا
A57: 17 | B57: مسعودي نصيرة | C57: مسعودي نصيرة | H57: 0 | I57: 0 | J57: 0 | K57: نتائج ضعيفة جدا
A58: 18 | B58: معمري فايزة | C58: معمري فايزة | H58: 0 | I58: 0 | J58: 0 | K58: نتائج ضعيفة جدا
A59: 19 | B59: هدلي هشام | C59: هدلي هشام | H59: 0 | I59: 0 | J59: 0 | K59: نتائج ضعيفة جدا
A60: 20 | B60: هلال ريناس | C60: هلال ريناس | H60: 0 | I60: 0 | J60: 0 | K60: نتائج ضعيفة جدا
B63: فوق المعدل | D63: =COUNTIF(I41:I60,">=10") -> 0 | F63: تحت المعدل | H63: =COUNTIF(I41:I61,"<10") -> 20 | K63: =AVERAGE(I41:I60) -> 0
A69: ثانوية :الشهيد سعيداني أحمد | E69: الفصل الثالث | I69: الــــــــمادة : اللغة العربية و آدابهـــا
A70: القســــــــــــــــم: 3ت.إق | I70: الموسم الدراسى: 2019/2018
A71: الأستاذة : حـــــمان يمنى | I71: ولايــــــة : بشــــــار | N71: أنشطـــــــة التقويــــــــم
A72: القـــــــــــــــــــــــــائمة الاسمية للتلاميـــــــــــــــــــــــــــــــــــذ
A74: الرقم | B74: الاسم و اللقب | D74: م.المستمرة | E74: تط/شفهي | F74: معدل الفروض | G74: الاختبار | H74: الاختبار/40 | I74: المعدل | J74: م.المعامل | K74: الملاحظة | N74: تعبير كتابي | O74: واجب منزلي | P74: مشروع
A75: 1 | B75: العياشي عائشة | C75: العياشي عائشة | H75: =G75*2 -> 0 | I75: =(H75+F75+E75+D75)/5 -> 0 | J75: =I75*3 -> 0 | K75: =IF(I75>=18,"نتائج ممتازة",IF(I75>=14,"نتائج جيدة جدا",IF(I75>=12," نتائج جد حسنة",IF(I75>=10,"نتائج متوسطة",IF(I75>=7,"نتائج ضعيفة","نتائج ضعيفة جدا"))))) -> نتائج ضعيفة جدا
A76: 2 | B76: برهمي أمين | C76: برهمي أمين | H76: =G76*2 -> 0 | I76: =(H76+F76+E76+D76)/5 -> 0 | J76: =I76*3 -> 0 | K76: نتائج ضعيفة جدا
A77: 3 | B77: بلقاسم سارة | C77: بلقاسم سارة | H77: 0 | I77: 0 | J77: 0 | K77: نتائج ضعيفة جدا
A78: 4 | B78: بن أحمد محمد لأمين | C78: بن أحمد محمد لأمين | H78: 0 | I78: 0 | J78: 0 | K78: نتائج ضعيفة جدا
A79: 5 | B79: بودي إلياس | C79: بودي إلياس | H79: 0 | I79: 0 | J79: 0 | K79: نتائج ضعيفة جدا
A80: 6 | B80: بودي سمية | C80: بودي سمية | H80: 0 | I80: 0 | J80: 0 | K80: نتائج ضعيفة جدا
A81: 7 | B81: تونسي حنان | C81: تونسي حنان | H81: 0 | I81: 0 | J81: 0 | K81: نتائج ضعيفة جدا
A82: 8 | B82: حكومي أحمد عبد الكريم | C82: حكومي أحمد عبد الكريم | H82: 0 | I82: 0 | J82: 0 | K82: نتائج ضعيفة جدا
A83: 9 | B83: دحام فاطمة الزهراء | C83: دحام فاطمة الزهراء | H83: 0 | I83: 0 | J83: 0 | K83: نتائج ضعيفة جدا
A84: 10 | B84: صديقي أمال | H84: 0 | I84: 0 | J84: 0 | K84: نتائج ضعيفة جدا
A85: 11 | B85: صديقي نور الهدى | C85: صديقي نور الهدى | H85: 0 | I85: 0 | J85: 0 | K85: نتائج ضعيفة جدا
A86: 12 | B86: عبد الحق شهرزاد | C86: عبد الحق شهرزاد | H86: 0 | I86: 0 | J86: 0 | K86: نتائج ضعيفة جدا
A87: 13 | B87: عفوس نور الهدى | C87: عفوس نور الهدى | H87: 0 | I87: 0 | J87: 0 | K87: نتائج ضعيفة جدا
A88: 14 | B88: مازوز وكيب | C88: مازوز وكيب | H88: 0 | I88: 0 | J88: 0 | K88: نتائج ضعيفة جدا
A89: 15 | B89: محمودي أيمن | C89: محمودي أيمن | H89: 0 | I89: 0 | J89: 0 | K89: نتائج ضعيفة جدا
A90: 16 | B90: مخلوفي الفاروق | C90: مخلوفي الفاروق | H90: 0 | I90: 0 | J90: 0 | K90: نتائج ضعيفة جدا
A91: 17 | B91: مسعودي نصيرة | C91: مسعودي نصيرة | H91: 0 | I91: 0 | J91: 0 | K91: نتائج ضعيفة جدا
A92: 18 | B92: معمري فايزة | C92: معمري فايزة | H92: 0 | I92: 0 | J92: 0 | K92: نتائج ضعيفة جدا
A93: 19 | B93: هدلي هشام | C93: هدلي هشام | H93: 0 | I93: 0 | J93: 0 | K93: نتائج ضعيفة جدا
A94: 20 | B94: هلال ريناس | C94: هلال ريناس | H94: 0 | I94: 0 | J94: 0 | K94: نتائج ضعيفة جدا
B97: فوق المعدل | D97: =COUNTIF(I75:I94,">=10") -> 0 | F97: تحت المعدل | H97: =COUNTIF(I75:I95,"<10") -> 20 | K97: =AVERAGE(I75:I94) -> 0

Sheet 3آداب وفلسفة
A1: ثانوية :الشهيد سعيداني أحمد | E1: الفصل الاول | I1: الــــــــمادة : اللغة العربية و آدابهـــا | S1: =S1:M24ثانوية :الشهيد سعيداني أحمد ->  | W1: الفصل الثاني | AA1: الــــــــمادة : آداب وفلســــــفة | AK1: =AK1:M24ثانوية :الشهيد سعيداني أحمد ->  | AO1: الفصل الثالث | AS1: الــــــــمادة : آداب وفلســــــفة
A2: القســــــــــــــــم: 3أ.فل | I2: الموسم الدراسى: 2019/2018 | S2: القســــــــــــــــم: 3أ.فل | AA2: الموسم الدراسى: 2019/2018 | AK2: القســــــــــــــــم: 3أ.فل | AS2: الموسم الدراسى: 2019/2018
A3: الأستاذة : حـــــمان يمنى | I3: ولايــــــة : بشــــــار | O3: أنشطـــــــة التقويــــــــم | S3: الأستاذة : حـــــمان يمنى | AA3: ولايــــــة : بشــــــار | AK3: الأستاذة : حـــــمان يمنى | AS3: ولايــــــة : بشــــــار
A4: القـــــــــــــــــــــــــائمة الاسمية للتلاميـــــــــــــــــــــــــــــــــــذ | S4: القـــــــــــــــــــــــــائمة الاسمية للتلاميـــــــــــــــــــــــــــــــــــذ | AK4: القـــــــــــــــــــــــــائمة الاسمية للتلاميـــــــــــــــــــــــــــــــــــذ
A6: الرقم | B6: الاسم و اللقب | D6: م.المستمرة | E6: تط/شفهي | F6: الفرض 1 | G6: الفرض 2 | H6: معدل الفروض | I6: الاختبار | J6: الاختبار/40 | K6: المعدل | L6: الملاحظة | O6: تعبير كتابي | P6: واجب منزلي | Q6: مشروع | S6: الرقم | T6: الاسم و اللقب | V6: م.المستمرة | W6: تط/شفهي | X6: معدل الفروض | Y6: الاختبار | Z6: الاختبار*2 | AA6: المعدل | AB6: المعامل | AC6: المجموع | AD6: الملاحظة | AK6: الرقم | AL6: الاسم و اللقب | AN6: م.المستمرة | AO6: تط/شفهي | AP6: معدل الفروض | AQ6: الاختبار | AR6: الاختبار*2 | AS6: المعدل | AT6: المعامل | AU6: المجموع | AV6: الملاحظة
A7: 1 | B7: بكيرات وليد | C7: بكيرات وليد | D7: 15.00 | E7: 12.00 | H7: =(G7+F7)/2 -> 0 | I7: 12.00 | J7: =I7*2 -> 24 | K7: =(J7+H7+E7+D7)/5 -> 10.2 | L7: =IF(I7>=18,"نتائج ممتازة",IF(I7>=14,"نتائج جيدة جدا",IF(I7>=12," نتائج جد حسنة",IF(I7>=10,"نتائج متوسطة",IF(I7>=7,"نتائج ضعيفة","نتائج ضعيفة جدا"))))) -> نتائج ممتازة | S7: 1 | T7: بكيرات وليد | U7: بكيرات وليد | Z7: =Y7*2 -> 0 | AA7: =(Z7+X7)/3 -> 0 | AB7: 5 | AC7: =AA7*AB7 -> 0 | AD7: =IF(AA7>=18,"نتائج ممتازة",IF(AA7>=14,"نتائج جيدة جدا",IF(AA7>=12," نتائج جد حسنة",IF(AA7>=10,"نتائج متوسطة",IF(AA7>=7,"نتائج ضعيفة","نتائج ضعيفة جدا"))))) -> نتائج ضعيفة جدا | AK7: 1 | AL7: بكيرات وليد | AM7: بكيرات وليد | AR7: =AQ7*2 -> 0 | AS7: =(AR7+AP7)/3 -> 0 | AT7: 5 | AU7: =AS7*AT7 -> 0 | AV7: =IF(AS7>=18,"نتائج ممتازة",IF(AS7>=14,"نتائج جيدة جدا",IF(AS7>=12," نتائج جد حسنة",IF(AS7>=10,"نتائج متوسطة",IF(AS7>=7,"نتائج ضعيفة","نتائج ضعيفة جدا"))))) -> نتائج ضعيفة جدا
A8: =A7+1 -> 2 | B8: بلبحري اكرام | C8: بلبحري اكرام | D8: 14.00 | E8: 12.00 | H8: =(G8+F8)/2 -> 0 | I8: 11.75 | J8: =I8*2 -> 23.5 | K8: =(J8+H8+E8+D8)/5 -> 9.9 | L8: نتائج ممتازة | S8: =S7+1 -> 2 | T8: بلبحري اكرام | U8: بلبحري اكرام | Z8: =Y8*2 -> 0 | AA8: =(Z8+X8)/3 -> 0 | AB8: 5 | AC8: =AA8*AB8 -> 0 | AD8: نتائج ضعيفة جدا | AK8: =AK7+1 -> 2 | AL8: بلبحري اكرام | AM8: بلبحري اكرام | AR8: =AQ8*2 -> 0 | AS8: =(AR8+AP8)/3 -> 0 | AT8: 5 | AU8: =AS8*AT8 -> 0 | AV8: نتائج ضعيفة جدا
A9: =A8+1 -> 3 | B9: بن احمد روميسة | C9: بن احمد روميسة | D9: 13.00 | E9: 11.00 | H9: 0 | I9: 12.50 | J9: 25 | K9: 9.8 | L9: نتائج ممتازة | S9: =S8+1 -> 3 | T9: بن احمد روميسة | U9: بن احمد روميسة | Z9: 0 | AA9: 0 | AB9: 5 | AC9: 0 | AD9: نتائج ضعيفة جدا | AK9: =AK8+1 -> 3 | AL9: بن احمد روميسة | AM9: بن احمد روميسة | AR9: 0 | AS9: 0 | AT9: 5 | AU9: 0 | AV9: نتائج ضعيفة جدا
A10: =A9+1 -> 4 | B10: بن ديدة اسلام | C10: بن ديدة اسلام | D10: 11.00 | E10: 10.00 | H10: 0 | I10: 07.00 | J10: 14 | K10: 7 | L10: نتائج ممتازة | S10: =S9+1 -> 4 | T10: بن ديدة اسلام | U10: بن ديدة اسلام | Z10: 0 | AA10: 0 | AB10: 5 | AC10: 0 | AD10: نتائج ضعيفة جدا | AK10: =AK9+1 -> 4 | AL10: بن ديدة اسلام | AM10: بن ديدة اسلام | AR10: 0 | AS10: 0 | AT10: 5 | AU10: 0 | AV10: نتائج ضعيفة جدا
A11: 5 | B11: بن شكشك إلهام | C11: بن شكشك إلهام | D11: 14.00 | E11: 12.00 | H11: 0 | I11: 09.50 | J11: 19 | K11: 9 | L11: نتائج ممتازة | S11: 5 | T11: بن شكشك إلهام | U11: بن شكشك إلهام | Z11: 0 | AA11: 0 | AB11: 5 | AC11: 0 | AD11: نتائج ضعيفة جدا | AK11: 5 | AL11: بن شكشك إلهام | AM11: بن شكشك إلهام | AR11: 0 | AS11: 0 | AT11: 5 | AU11: 0 | AV11: نتائج ضعيفة جدا
A12: 6 | B12: بن شهرة زوبيدة | C12: بن شهرة زوبيدة | D12: 14.00 | E12: 12.00 | H12: 0 | I12: 10.50 | J12: 21 | K12: 9.4 | L12: نتائج ممتازة | S12: 6 | T12: بن شهرة زوبيدة | U12: بن شهرة زوبيدة | Z12: 0 | AA12: 0 | AB12: 5 | AC12: 0 | AD12: نتائج ضعيفة جدا | AK12: 6 | AL12: بن شهرة زوبيدة | AM12: بن شهرة زوبيدة | AR12: 0 | AS12: 0 | AT12: 5 | AU12: 0 | AV12: نتائج ضعيفة جدا
A13: 7 | B13: بن عامر أمال | C13: بن عامر أمال | D13: 14.00 | E13: 12.00 | H13: 0 | I13: 15.00 | J13: 30 | K13: 11.2 | L13: نتائج ممتازة | S13: 7 | T13: بن عامر أمال | U13: بن عامر أمال | Z13: 0 | AA13: 0 | AB13: 5 | AC13: 0 | AD13: نتائج ضعيفة جدا | AK13: 7 | AL13: بن عامر أمال | AM13: بن عامر أمال | AR13: 0 | AS13: 0 | AT13: 5 | AU13: 0 | AV13: نتائج ضعيفة جدا
A14: =A13+1 -> 8 | B14: بن على محمد شرف الدين | C14: بن على محمد شرف الدين | D14: 13.00 | E14: 11.00 | H14: 0 | I14: 06.50 | J14: 13 | K14: 7.4 | L14: نتائج ممتازة | S14: =S13+1 -> 8 | T14: بن على محمد شرف الدين | U14: بن على محمد شرف الدين | Z14: 0 | AA14: 0 | AB14: 5 | AC14: 0 | AD14: نتائج ضعيفة جدا | AK14: =AK13+1 -> 8 | AL14: بن على محمد شرف الدين | AM14: بن على محمد شرف الدين | AR14: 0 | AS14: 0 | AT14: 5 | AU14: 0 | AV14: نتائج ضعيفة جدا
A15: 9 | B15: بن علي محمد | C15: بن علي محمد | D15: 14.00 | E15: 12.00 | H15: 0 | I15: 04.75 | J15: 9.5 | K15: 7.1 | L15: نتائج ممتازة | S15: 9 | T15: بن علي محمد | U15: بن علي محمد | Z15: 0 | AA15: 0 | AB15: 5 | AC15: 0 | AD15: نتائج ضعيفة جدا | AK15: 9 | AL15: بن علي محمد | AM15: بن علي محمد | AR15: 0 | AS15: 0 | AT15: 5 | AU15: 0 | AV15: نتائج ضعيفة جدا
A16: 10 | B16: بن مجدوب عبد القادر صلاح الدين | C16: بن مجدوب عبد القادر صلاح الدين | D16: 15.00 | E16: 13.00 | H16: 0 | I16: 09.50 | J16: 19 | K16: 9.4 | L16: نتائج ممتازة | S16: 10 | T16: بن مجدوب عبد القادر صلاح الدين | U16: بن مجدوب عبد القادر صلاح الدين | Z16: 0 | AA16: 0 | AB16: 5 | AC16: 0 | AD16: نتائج ضعيفة جدا | AK16: 10 | AL16: بن مجدوب عبد القادر صلاح الدين | AM16: بن مجدوب عبد القادر صلاح الدين | AR16: 0 | AS16: 0 | AT16: 5 | AU16: 0 | AV16: نتائج ضعيفة جدا
A17: 11 | B17: بن ميلود هاجر | C17: بن ميلود هاجر | D17: 14.00 | E17: 12.00 | H17: 0 | I17: 10.25 | J17: 20.5 | K17: 9.3 | L17: نتائج ممتازة | S17: 11 | T17: بن ميلود هاجر | U17: بن ميلود هاجر | Z17: 0 | AA17: 0 | AB17: 5 | AC17: 0 | AD17: نتائج ضعيفة جدا | AK17: 11 | AL17: بن ميلود هاجر | AM17: بن ميلود هاجر | AR17: 0 | AS17: 0 | AT17: 5 | AU17: 0 | AV17: نتائج ضعيفة جدا
A18: 12 | B18: بيان ريا ض | C18: بيان ريا ض | D18: 11.00 | E18: 11.00 | H18: 0 | I18: 03.75 | J18: 7.5 | K18: 5.9 | L18: نتائج ممتازة | S18: 12 | T18: بيان ريا ض | U18: بيان ريا ض | Z18: 0 | AA18: 0 | AB18: 5 | AC18: 0 | AD18: نتائج ضعيفة جدا | AK18: 12 | AL18: بيان ريا ض | AM18: بيان ريا ض | AR18: 0 | AS18: 0 | AT18: 5 | AU18: 0 | AV18: نتائج ضعيفة جدا
A19: 13 | B19: حاكم ياسر | C19: حاكم ياسر | D19: 13.00 | E19: 12.00 | H19: 0 | I19: 11.50 | J19: 23 | K19: 9.6 | L19: نتائج ممتازة | S19: 13 | T19: حاكم ياسر | U19: حاكم ياسر | Z19: 0 | AA19: 0 | AB19: 5 | AC19: 0 | AD19: نتائج ضعيفة جدا | AK19: 13 | AL19: حاكم ياسر | AM19: حاكم ياسر | AR19: 0 | AS19: 0 | AT19: 5 | AU19: 0 | AV19: نتائج ضعيفة جدا
A20: 14 | B20: حبيبي مروة | C20: حبيبي مروة | D20: 13.00 | E20: 11.50 | H20: 0 | I20: 12.25 | J20: 24.5 | K20: 9.8 | L20: نتائج ممتازة | S20: 14 | T20: حبيبي مروة | U20: حبيبي مروة | Z20: 0 | AA20: 0 | AB20: 5 | AC20: 0 | AD20: نتائج ضعيفة جدا | AK20: 14 | AL20: حبيبي مروة | AM20: حبيبي مروة | AR20: 0 | AS20: 0 | AT20: 5 | AU20: 0 | AV20: نتائج ضعيفة جدا
A21: 15 | B21: خالفي محمد | C21: خالفي محمد | D21: 11.00 | E21: 10.50 | H21: 0 | I21: 12.50 | J21: 25 | K21: 9.3 | L21: نتائج ممتازة | S21: 15 | T21: خالفي محمد | U21: خالفي محمد | Z21: 0 | AA21: 0 | AB21: 5 | AC21: 0 | AD21: نتائج ضعيفة جدا | AK21: 15 | AL21: خالفي محمد | AM21: خالفي محمد | AR21: 0 | AS21: 0 | AT21: 5 | AU21: 0 | AV21: نتائج ضعيفة جدا
A22: 16 | B22: دحمان معاد عصام الدين | C22: دحمان معاد عصام الدين | D22: 10.50 | E22: 10.00 | H22: 0 | I22: 05.25 | J22: 10.5 | K22: 6.2 | L22: نتائج ممتازة | S22: 16 | T22: دحمان معاد عصام الدين | U22: دحمان معاد عصام الدين | Z22: 0 | AA22: 0 | AB22: 5 | AC22: 0 | AD22: نتائج ضعيفة جدا | AK22: 16 | AL22: دحمان معاد عصام الدين | AM22: دحمان معاد عصام الدين | AR22: 0 | AS22: 0 | AT22: 5 | AU22: 0 | AV22: نتائج ضعيفة جدا
A23: 17 | B23: دلاس فاطمة الزهراء | C23: دلاس فاطمة الزهراء | D23: 14.00 | E23: 12.00 | H23: 0 | I23: 09.75 | J23: 19.5 | K23: 9.1 | L23: نتائج ممتازة | S23: 17 | T23: دلاس فاطمة الزهراء | U23: دلاس فاطمة الزهراء | Z23: 0 | AA23: 0 | AB23: 5 | AC23: 0 | AD23: نتائج ضعيفة جدا | AK23: 17 | AL23: دلاس فاطمة الزهراء | AM23: دلاس فاطمة الزهراء | AR23: 0 | AS23: 0 | AT23: 5 | AU23: 0 | AV23: نتائج ضعيفة جدا
A24: 18 | B24: زباش عائشة | C24: زباش عائشة | D24: 12.50 | E24: 11.00 | H24: 0 | I24: 09.25 | J24: 18.5 | K24: 8.4 | L24: نتائج ممتازة | S24: 18 | T24: زباش عائشة | U24: زباش عائشة | Z24: 0 | AA24: 0 | AB24: 5 | AC24: 0 | AD24: نتائج ضعيفة جدا | AK24: 18 | AL24: زباش عائشة | AM24: زباش عائشة | AR24: 0 | AS24: 0 | AT24: 5 | AU24: 0 | AV24: نتائج ضعيفة جدا
A25: 19 | B25: ساعي اكرام | C25: ساعي اكرام | D25: 13.00 | E25: 11.50 | H25: 0 | I25: 09.50 | J25: 19 | K25: 8.7 | L25: نتائج ممتازة | S25: 19 | T25: ساعي اكرام | U25: ساعي اكرام | Z25: 0 | AA25: 0 | AB25: 5 | AC25: 0 | AD25: نتائج ضعيفة جدا | AK25: 19 | AL25: ساعي اكرام | AM25: ساعي اكرام | AR25: 0 | AS25: 0 | AT25: 5 | AU25: 0 | AV25: نتائج ضعيفة جدا
A26: 20 | B26: شنتوف صباح | C26: شنتوف صباح | D26: 12.00 | E26: 11.00 | H26: 0 | I26: 09.50 | J26: 19 | K26: 8.4 | L26: نتائج ممتازة | S26: 20 | T26: شنتوف صباح | U26: شنتوف صباح | Z26: 0 | AA26: 0 | AB26: 5 | AC26: 0 | AD26: نتائج ضعيفة جدا | AK26: 20 | AL26: شنتوف صباح | AM26: شنتوف صباح | AR26: 0 | AS26: 0 | AT26: 5 | AU26: 0 | AV26: نتائج ضعيفة جدا
A27: 21 | B27: صالحي صافية | C27: صالحي صافية | D27: 14.00 | E27: 13.00 | H27: 0 | I27: 10.75 | J27: 21.5 | K27: 9.7 | L27: نتائج ممتازة | S27: 21 | T27: صالحي صافية | U27: صالحي صافية | Z27: 0 | AA27: 0 | AB27: 5 | AC27: 0 | AD27: نتائج ضعيفة جدا | AK27: 21 | AL27: صالحي صافية | AM27: صالحي صافية | AR27: 0 | AS27: 0 | AT27: 5 | AU27: 0 | AV27: نتائج ضعيفة جدا
A28: 22 | B28: عماري طارق | C28: عماري طارق | D28: 13.50 | E28: 12.00 | H28: 0 | I28: 07.75 | J28: 15.5 | K28: 8.2 | L28: نتائج ممتازة | S28: 22 | T28: عماري طارق | U28: عماري طارق | Z28: 0 | AA28: 0 | AB28: 5 | AC28: 0 | AD28: نتائج ضعيفة جدا | AK28: 22 | AL28: عماري طارق | AM28: عماري طارق | AR28: 0 | AS28: 0 | AT28: 5 | AU28: 0 | AV28: نتائج ضعيفة جدا
A29: 23 | B29: عمير محمد | C29: عمير محمد | D29: 13.00 | E29: 11.50 | H29: 0 | I29: 10.50 | J29: 21 | K29: 9.1 | L29: نتائج ممتازة | S29: 23 | T29: عمير محمد | U29: عمير محمد | Z29: 0 | AA29: 0 | AB29: 5 | AC29: 0 | AD29: نتائج ضعيفة جدا | AK29: 23 | AL29: عمير محمد | AM29: عمير محمد | AR29: 0 | AS29: 0 | AT29: 5 | AU29: 0 | AV29: نتائج ضعيفة جدا
A30: 24 | B30: قندوزي عيدة | C30: قندوزي عيدة | D30: 14.00 | E30: 12.00 | H30: 0 | I30: 09.50 | J30: 19 | K30: 9 | L30: نتائج ممتازة | S30: 24 | T30: قندوزي عيدة | U30: قندوزي عيدة | Z30: 0 | AA30: 0 | AB30: 5 | AC30: 0 | AD30: نتائج ضعيفة جدا | AK30: 24 | AL30: قندوزي عيدة | AM30: قندوزي عيدة | AR30: 0 | AS30: 0 | AT30: 5 | AU30: 0 | AV30: نتائج ضعيفة جدا
A31: 25 | B31: كبريت عائشة | D31: 14.00 | E31: 12.00 | H31: 0 | I31: 07.50 | J31: 15 | K31: 8.2 | L31: نتائج ممتازة | S31: 25 | T31: كبريت عائشة | Z31: 0 | AA31: 0 | AB31: 5 | AC31: 0 | AD31: نتائج ضعيفة جدا | AK31: 25 | AL31: كبريت عائشة | AR31: 0 | AS31: 0 | AT31: 5 | AU31: 0 | AV31: نتائج ضعيفة جدا
A32: 26 | B32: مبروكي روميسة | C32: كبريت عائشة | D32: 14.50 | E32: 12.00 | H32: 0 | I32: 11.25 | J32: 22.5 | K32: 9.8 | L32: نتائج ممتازة | S32: 26 | T32: مبروكي روميسة | U32: كبريت عائشة | Z32: 0 | AA32: 0 | AB32: 5 | AC32: 0 | AD32: نتائج ضعيفة جدا | AK32: 26 | AL32: مبروكي روميسة | AM32: كبريت عائشة | AR32: 0 | AS32: 0 | AT32: 5 | AU32: 0 | AV32: نتائج ضعيفة جدا
A33: 27 | B33: مجدوب إلياس | D33: 12.00 | E33: 11.50 | H33: 0 | I33: 11.75 | J33: 23.5 | K33: 9.4 | L33: نتائج ممتازة | S33: 27 | T33: مجدوب إلياس | Z33: 0 | AA33: 0 | AB33: 5 | AC33: 0 | AD33: نتائج ضعيفة جدا | AK33: 27 | AL33: مجدوب إلياس | AR33: 0 | AS33: 0 | AT33: 5 | AU33: 0 | AV33: نتائج ضعيفة جدا
A34: 28 | B34: معطي صفاء | D34: 14.00 | E34: 12.00 | H34: 0 | I34: 10.00 | J34: 20 | K34: 9.2 | L34: نتائج ممتازة | S34: 28 | T34: معطي صفاء | Z34: 0 | AA34: 0 | AB34: 5 | AC34: 0 | AD34: نتائج ضعيفة جدا | AK34: 28 | AL34: معطي صفاء | AR34: 0 | AS34: 0 | AT34: 5 | AU34: 0 | AV34: نتائج ضعيفة جدا
A35: 29 | B35: هدلي مريم | D35: 15.00 | E35: 12.00 | H35: 0 | I35: 08.75 | J35: 17.5 | K35: 8.9 | L35: نتائج ممتازة | S35: 29 | T35: هدلي مريم | Z35: 0 | AA35: 0 | AB35: 5 | AC35: 0 | AD35: نتائج ضعيفة جدا | AK35: 29 | AL35: هدلي مريم | AR35: 0 | AS35: 0 | AT35: 5 | AU35: 0 | AV35: نتائج ضعيفة جدا
B38: فوق المعدل | C38: معطي صفاء | D38: =COUNTIF(K7:K35,">=10") -> 2 | F38: تحت المعدل | H38: =COUNTIF(K7:K35,"<10") -> 27 | J38: معدل القسم | L38: =AVERAGE(K7:K35) -> 8.848275862 | T38: معطي صفاء | U38: معطي صفاء | V38: =COUNTIF(AA7:AA32,">=10") -> 0 | X38: تحت المعدل | Z38: =COUNTIF(AA7:AA36,"<10") -> 29 | AB38: معدل القسم | AD38: =AVERAGE(AA7:AA32) -> 0 | AL38: معطي صفاء | AM38: معطي صفاء | AN38: =COUNTIF(AS7:AS32,">=10") -> 0 | AP38: تحت المعدل | AR38: =COUNTIF(AS7:AS36,"<10") -> 29 | AT38: معدل القسم | AV38: =AVERAGE(AS7:AS32) -> 0
A44: ثانوية :الشهيد سعيداني أحمد | E44: الفصل الثاني | I44: الــــــــمادة : اللغة العربية و آدابهـــا
A45: القســــــــــــــــم: 3أ.فل | I45: الموسم الدراسى: 2019/2018
A46: الأستاذة : حـــــمان يمنى | I46: ولايــــــة : بشــــــار | O46: أنشطـــــــة التقويــــــــم
A47: القـــــــــــــــــــــــــائمة الاسمية للتلاميـــــــــــــــــــــــــــــــــــذ
A49: الرقم | B49: الاسم و اللقب | D49: م.المستمرة | E49: تط/شفهي | F49: الفرض 1 | G49: الفرض 2 | H49: معدل الفروض | I49: الاختبار | J49: الاختبار/40 | K49: المعدل | L49: الملاحظة | O49: تعبير كتابي | P49: واجب منزلي | Q49: مشروع
A50: 1 | B50: بكيرات وليد | C50: بكيرات وليد | H50: =(G50+F50)/2 -> 0 | J50: =I50*2 -> 0 | K50: =(J50+H50+E50+D50)/5 -> 0 | L50: =IF(I50>=18,"نتائج ممتازة",IF(I50>=14,"نتائج جيدة جدا",IF(I50>=12," نتائج جد حسنة",IF(I50>=10,"نتائج متوسطة",IF(I50>=7,"نتائج ضعيفة","نتائج ضعيفة جدا"))))) -> نتائج ضعيفة جدا
A51: =A50+1 -> 2 | B51: بلبحري اكرام | C51: بلبحري اكرام | H51: =(G51+F51)/2 -> 0 | J51: =I51*2 -> 0 | K51: =(J51+H51+E51+D51)/5 -> 0 | L51: نتائج ضعيفة جدا
A52: =A51+1 -> 3 | B52: بن احمد روميسة | C52: بن احمد روميسة | H52: 0 | J52: 0 | K52: 0 | L52: نتائج ضعيفة جدا
A53: =A52+1 -> 4 | B53: بن ديدة اسلام | C53: بن ديدة اسلام | H53: 0 | J53: 0 | K53: 0 | L53: نتائج ضعيفة جدا
A54: 5 | B54: بن شكشك إلهام | C54: بن شكشك إلهام | H54: 0 | J54: 0 | K54: 0 | L54: نتائج ضعيفة جدا
A55: 6 | B55: بن شهرة زوبيدة | C55: بن شهرة زوبيدة | H55: 0 | J55: 0 | K55: 0 | L55: نتائج ضعيفة جدا
A56: 7 | B56: بن عامر أمال | C56: بن عامر أمال | H56: 0 | J56: 0 | K56: 0 | L56: نتائج ضعيفة جدا
A57: =A56+1 -> 8 | B57: بن على محمد شرف الدين | C57: بن على محمد شرف الدين | H57: 0 | J57: 0 | K57: 0 | L57: نتائج ضعيفة جدا
A58: 9 | B58: بن علي محمد | C58: بن علي محمد | H58: 0 | J58: 0 | K58: 0 | L58: نتائج ضعيفة جدا
A59: 10 | B59: بن مجدوب عبد القادر صلاح الدين | C59: بن مجدوب عبد القادر صلاح الدين | H59: 0 | J59: 0 | K59: 0 | L59: نتائج ضعيفة جدا
A60: 11 | B60: بن ميلود هاجر | C60: بن ميلود هاجر | H60: 0 | J60: 0 | K60: 0 | L60: نتائج ضعيفة جدا
A61: 12 | B61: بيان ريا ض | C61: بيان ريا ض | H61: 0 | J61: 0 | K61: 0 | L61: نتائج ضعيفة جدا
A62: 13 | B62: حاكم ياسر | C62: حاكم ياسر | H62: 0 | J62: 0 | K62: 0 | L62: نتائج ضعيفة جدا
A63: 14 | B63: حبيبي مروة | C63: حبيبي مروة | H63: 0 | J63: 0 | K63: 0 | L63: نتائج ضعيفة جدا
A64: 15 | B64: خالفي محمد | C64: خالفي محمد | H64: 0 | J64: 0 | K64: 0 | L64: نتائج ضعيفة جدا
A65: 16 | B65: دحمان معاد عصام الدين | C65: دحمان معاد عصام الدين | H65: 0 | J65: 0 | K65: 0 | L65: نتائج ضعيفة جدا
A66: 17 | B66: دلاس فاطمة الزهراء | C66: دلاس فاطمة الزهراء | H66: 0 | J66: 0 | K66: 0 | L66: نتائج ضعيفة جدا
A67: 18 | B67: زباش عائشة | C67: زباش عائشة | H67: 0 | J67: 0 | K67: 0 | L67: نتائج ضعيفة جدا
A68: 19 | B68: ساعي اكرام | C68: ساعي اكرام | H68: 0 | J68: 0 | K68: 0 | L68: نتائج ضعيفة جدا
A69: 20 | B69: شنتوف صباح | C69: شنتوف صباح | H69: 0 | J69: 0 | K69: 0 | L69: نتائج ضعيفة جدا
A70: 21 | B70: صالحي صافية | C70: صالحي صافية | H70: 0 | J70: 0 | K70: 0 | L70: نتائج ضعيفة جدا
A71: 22 | B71: عماري طارق | C71: عماري طارق | H71: 0 | J71: 0 | K71: 0 | L71: نتائج ضعيفة جدا
A72: 23 | B72: عمير محمد | C72: عمير محمد | H72: 0 | J72: 0 | K72: 0 | L72: نتائج ضعيفة جدا
A73: 24 | B73: قندوزي عيدة | C73: قندوزي عيدة | H73: 0 | J73: 0 | K73: 0 | L73: نتائج ضعيفة جدا
A74: 25 | B74: كبريت عائشة | H74: 0 | J74: 0 | K74: 0 | L74: نتائج ضعيفة جدا
A75: 26 | B75: مبروكي روميسة | C75: كبريت عائشة | H75: 0 | J75: 0 | K75: 0 | L75: نتائج ضعيفة جدا
A76: 27 | B76: مجدوب إلياس | H76: 0 | J76: 0 | K76: 0 | L76: نتائج ضعيفة جدا
A77: 28 | B77: معطي صفاء | H77: 0 | J77: 0 | K77: 0 | L77: نتائج ضعيفة جدا
A78: 29 | B78: هدلي مريم | H78: 0 | J78: 0 | K78: 0 | L78: نتائج ضعيفة جدا
B81: فوق المعدل | C81: معطي صفاء | D81: =COUNTIF(K50:K78,">=10") -> 0 | F81: تحت المعدل | H81: =COUNTIF(K50:K78,"<10") -> 29 | J81: معدل القسم | L81: =AVERAGE(K50:K78) -> 0
A87: ثانوية :الشهيد سعيداني أحمد | E87: الفصل الثالث | I87: الــــــــمادة : اللغة العربية و آدابهـــا
A88: القســــــــــــــــم: 3أ.فل | I88: الموسم الدراسى: 2019/2018
A89: الأستاذة : حـــــمان يمنى | I89: ولايــــــة : بشــــــار | O89: أنشطـــــــة التقويــــــــم
A90: القـــــــــــــــــــــــــائمة الاسمية للتلاميـــــــــــــــــــــــــــــــــــذ
A92: الرقم | B92: الاسم و اللقب | D92: م.المستمرة | E92: تط/شفهي | F92: الفرض 1 | G92: الفرض 2 | H92: معدل الفروض | I92: الاختبار | J92: الاختبار/40 | K92: المعدل | L92: الملاحظة | O92: تعبير كتابي | P92: واجب منزلي | Q92: مشروع
A93: 1 | B93: بكيرات وليد | C93: بكيرات وليد | H93: =(G93+F93)/2 -> 0 | J93: =I93*2 -> 0 | K93: =(J93+H93+E93+D93)/5 -> 0 | L93: =IF(I93>=18,"نتائج ممتازة",IF(I93>=14,"نتائج جيدة جدا",IF(I93>=12," نتائج جد حسنة",IF(I93>=10,"نتائج متوسطة",IF(I93>=7,"نتائج ضعيفة","نتائج ضعيفة جدا"))))) -> نتائج ضعيفة جدا
A94: =A93+1 -> 2 | B94: بلبحري اكرام | C94: بلبحري اكرام | H94: =(G94+F94)/2 -> 0 | J94: =I94*2 -> 0 | K94: =(J94+H94+E94+D94)/5 -> 0 | L94: نتائج ضعيفة جدا
A95: =A94+1 -> 3 | B95: بن احمد روميسة | C95: بن احمد روميسة | H95: 0 | J95: 0 | K95: 0 | L95: نتائج ضعيفة جدا
A96: =A95+1 -> 4 | B96: بن ديدة اسلام | C96: بن ديدة اسلام | H96: 0 | J96: 0 | K96: 0 | L96: نتائج ضعيفة جدا
A97: 5 | B97: بن شكشك إلهام | C97: بن شكشك إلهام | H97: 0 | J97: 0 | K97: 0 | L97: نتائج ضعيفة جدا
A98: 6 | B98: بن شهرة زوبيدة | C98: بن شهرة زوبيدة | H98: 0 | J98: 0 | K98: 0 | L98: نتائج ضعيفة جدا
A99: 7 | B99: بن عامر أمال | C99: بن عامر أمال | H99: 0 | J99: 0 | K99: 0 | L99: نتائج ضعيفة جدا
A100: =A99+1 -> 8 | B100: بن على محمد شرف الدين | C100: بن على محمد شرف الدين | H100: 0 | J100: 0 | K100: 0 | L100: نتائج ضعيفة جدا
A101: 9 | B101: بن علي محمد | C101: بن علي محمد | H101: 0 | J101: 0 | K101: 0 | L101: نتائج ضعيفة جدا
A102: 10 | B102: بن مجدوب عبد القادر صلاح الدين | C102: بن مجدوب عبد القادر صلاح الدين | H102: 0 | J102: 0 | K102: 0 | L102: نتائج ضعيفة جدا
A103: 11 | B103: بن ميلود هاجر | C103: بن ميلود هاجر | H103: 0 | J103: 0 | K103: 0 | L103: نتائج ضعيفة جدا
A104: 12 | B104: بيان ريا ض | C104: بيان ريا ض | H104: 0 | J104: 0 | K104: 0 | L104: نتائج ضعيفة جدا
A105: 13 | B105: حاكم ياسر | C105: حاكم ياسر | H105: 0 | J105: 0 | K105: 0 | L105: نتائج ضعيفة جدا
A106: 14 | B106: حبيبي مروة | C106: حبيبي مروة | H106: 0 | J106: 0 | K106: 0 | L106: نتائج ضعيفة جدا
A107: 15 | B107: خالفي محمد | C107: خالفي محمد | H107: 0 | J107: 0 | K107: 0 | L107: نتائج ضعيفة جدا
A108: 16 | B108: دحمان معاد عصام الدين | C108: دحمان معاد عصام الدين | H108: 0 | J108: 0 | K108: 0 | L108: نتائج ضعيفة جدا
A109: 17 | B109: دلاس فاطمة الزهراء | C109: دلاس فاطمة الزهراء | H109: 0 | J109: 0 | K109: 0 | L109: نتائج ضعيفة جدا
A110: 18 | B110: زباش عائشة | C110: زباش عائشة | H110: 0 | J110: 0 | K110: 0 | L110: نتائج ضعيفة جدا
A111: 19 | B111: ساعي اكرام | C111: ساعي اكرام | H111: 0 | J111: 0 | K111: 0 | L111: نتائج ضعيفة جدا
A112: 20 | B112: شنتوف صباح | C112: شنتوف صباح | H112: 0 | J112: 0 | K112: 0 | L112: نتائج ضعيفة جدا
A113: 21 | B113: صالحي صافية | C113: صالحي صافية | H113: 0 | J113: 0 | K113: 0 | L113: نتائج ضعيفة جدا
A114: 22 | B114: عماري طارق | C114: عماري طارق | H114: 0 | J114: 0 | K114: 0 | L114: نتائج ضعيفة جدا
A115: 23 | B115: عمير محمد | C115: عمير محمد | H115: 0 | J115: 0 | K115: 0 | L115: نتائج ضعيفة جدا
A116: 24 | B116: قندوزي عيدة | C116: قندوزي عيدة | H116: 0 | J116: 0 | K116: 0 | L116: نتائج ضعيفة جدا
A117: 25 | B117: كبريت عائشة | H117: 0 | J117: 0 | K117: 0 | L117: نتائج ضعيفة جدا
A118: 26 | B118: مبروكي روميسة | C118: كبريت عائشة | H118: 0 | J118: 0 | K118: 0 | L118: نتائج ضعيفة جدا
A119: 27 | B119: مجدوب إلياس | H119: 0 | J119: 0 | K119: 0 | L119: نتائج ضعيفة جدا
A120: 28 | B120: معطي صفاء | H120: 0 | J120: 0 | K120: 0 | L120: نتائج ضعيفة جدا
A121: 29 | B121: هدلي مريم | H121: 0 | J121: 0 | K121: 0 | L121: نتائج ضعيفة جدا
B124: فوق المعدل | C124: معطي صفاء | D124: =COUNTIF(K93:K121,">=10") -> 0 | F124: تحت المعدل | H124: =COUNTIF(K93:K121,"<10") -> 29 | J124: معدل القسم | L124: =AVERAGE(K93:K121) -> 0
